Workbook

Sheet VersionDescription
B3: Version Description.
B5: E2 | C5: July 20, 2019: The "E" stands for "Edition". Consolidates work done since February 2017. This edition models Governor response, Underfrequency Load Shedding, and generation injections such as from battery storage or synthetic inertia from wind turbines.

Sheet Simulator
I2: Notes: Impact of M, zero wind penetration | T2: Load/Generation Adjustments Threshold Frequencies | W2: Power Injections Threshold Times | AF2: 1
B4: GLS Cap. (MW)= | C4: =GLS/GovSetPt -> 29968.88889 | D4: Resp Gen Droop = | F4: 0.05 | G4: GLS Power (MW) = | I4: =(Load+DeltaP) -> 26972 | J4: Wind : | K4: 1 | L4: 0 | M4: GovDelay(s) = | N4: 0.9 | O4: GovResp Cap = | Q4: =CapacityOfGls*GovRespGeneration -> 29968.88889 | T4: Frequency | U4: Load Shed | V4: Delay | W4: Time | X4: Power Injected | Y4: Response
B5: GLS Cap. (MW)= | C5: 29968.88889 | D5: Resp Gen Droop = | F5: 0.05 | G5: GLS PF = | I5: 0.866 | M5: Wind(MW) = | N5: =WindPenetration*Load -> 0 | O5: GovResp Cap = | Q5: =wCapacityOfGls*wGovRespGeneration -> 29968.88889 | T5: (Hz) | U5: ( pu of P0) | V5: (s) | W5: (s) | X5: (pu of P0) | Y5: (s) | AF5: Yes
AF6: No
B7: Load (MW) = | C7: 29372 | D7: MaxMwFromGovResponse = | G7: =IF(KeepSirPfr=2,(MaxGovMw*wGovRespGeneration),(MaxGovMw+WindGeneration)) -> 2996.888889 | H7: MaxMwFromGovResponse = | K7: =(1-GovSetPt)*(CapacityOfGls*GovRespGeneration) -> 2996.888889 | L7: SimuTime (s) = | N7: 60 | P7: ∆t (s) = | Q7: 0.001 | S7: 1 | W7: 1.5 | X7: =AC15 -> 0 | Y7: 1 | AB7: 150 | AC7: 0.0046 | AD7: 900 | AE7: =(AC7/AB7)*900 -> 0.0276
B8: ∆P (MW) | C8: -2400 | D8: D | E8: M | F8: ∆P | G8: 1/Edroop | H8: Edroop | I8: GovGen | J8: GovSetPt | K8: Gat | L8: Grt | M8: Wat | N8: Wrt | O8: Wamt | Q8: What If ? | S8: 2 | W8: 4 | X8: =AC16 -> 0 | Y8: 15.5 | AB8: ratio= | AC8: =AE7/AC7 -> 6 | BB8: Time | BC8: Frequency | BD8: WhatIf Freq
B9: fi (Hz) | C9: 60 | D9: (pu) | E9: (sec) | F9: (pu) | G9: (pu) | H9: (pu) | I9: (%) | J9: (%) | K9: (sec) | L9: (sec) | M9: (sec) | N9: (sec) | O9: (%) | Q9: (Yes/No) | S9: 3 | W9: 12.5 | X9: =AC17 -> 0 | Y9: 14 | BB9: 0 | BC9: 60 | BD9: 60 | BE9: 0 | BG9: 0 | BH9: 0 | BI9: 0 | BJ9: 0
B10: P0 (MVA) | C10: =CapacityOfGls/PowerFactor -> 34606.10726 | D10: 5.3 | E10: 12.9 | F10: =C8/C10 -> -0.06935192051 | G10: =1/H10 -> 20 | H10: =ResponsiveDroop*(CapacityOfGls/GovRespCap) -> 0.05 | I10: 1 | J10: 0.9 | K10: 4 | L10: 6.5 | M10: 20 | N10: 9 | O10: 0 | P10: 0 | Q10: =IF(YesNoIndex=1," YES"," NO") -> YES | S10: 4 | W10: 17 | X10: =AC18 -> 0 | Y10: 11 | BB10: 0.001 | BC10: 59.9996775 | BD10: 59.99930679 | BE10: 0.001 | BG10: 0.001 | BH10: 0 | BI10: 0.001 | BJ10: 0
B11: P0 (MVA) | C11: =PzeroPlusNo -> 34606.10726 | D11: 5.3 | E11: 6 | F11: =C8/C11 -> -0.06935192051 | G11: =1/H11 -> 20 | H11: =wResponsiveDroop*(wCapacityOfGls/wGovRespCap) -> 0.05 | I11: 1 | J11: =1-(wMaxGovMw/wCapacityOfGls) -> 0.9 | K11: 4 | L11: 6.5 | M11: 20 | N11: 9 | O11: 0 | P11: 0 | S11: 5 | W11: 100 | X11: 0 | Y11: 5 | BB11: 0.002 | BC11: 59.99935513 | BD11: 59.99861419 | BE11: 0.002 | BG11: 0.002 | BH11: 0 | BI11: 0.002 | BJ11: 0
S12: 6 | W12: 100 | X12: 0 | Y12: 6 | AA12: WindCapacity | AB12: Time | AC12: SynResp | AD12: GenCap | AE12: GenCapon Line | AF12: Gen Loaded | AG12: M From Gen | AH12: D from L and Gen | AI12: WindCap | BB12: 0.003 | BC12: 59.99903289 | BD12: 59.9979222 | BE12: 0.003 | BG12: 0.003 | BH12: 0 | BI12: 0.003 | BJ12: 0
B13: 33 | S13: 7 | W13: 100 | X13: 0 | Y13: 7 | AA13: 0 | AC13: 0 | AD13: =GLS/GovSetPt -> 29968.88889 | AE13: =GLS -> 26972 | AF13: =AE13/AD13 -> 0.9 | AG13: 12.9 | AH13: 5.3 | AI13: 0 | BB13: 0.004 | BC13: 59.99871079 | BD13: 59.99723082 | BE13: 0.004 | BG13: 0.004 | BH13: 0 | BI13: 0.004 | BJ13: 0
S14: 8 | W14: 100 | X14: 0 | Y14: 8 | BB14: 0.005 | BC14: 59.99838882 | BD14: 59.99654005 | BE14: 0.005 | BG14: 0.005 | BH14: 0 | BI14: 0.005 | BJ14: 0
S15: 9 | W15: 100 | X15: 0 | Y15: 9 | AA15: =WindPenetration -> 0 | AB15: 1.5 | AC15: =(AB24/0.4)*AA15 -> 0 | AD15: =AD13 -> 29968.88889 | AE15: =AE13*(1-AA15) -> 26972 | AF15: =AE15/AD15 -> 0.9 | AG15: =AG13*(1-AA15) -> 12.9 | AH15: =2.5+(AH13-2.5)*(1-AA15) -> 5.3 | AI15: =AA15*Load -> 0 | AJ15: =MaxGovMw -> 2996.888889 | BB15: 0.006 | BC15: 59.99806698 | BD15: 59.99584989 | BE15: 0.006 | BG15: 0.006 | BH15: 0 | BI15: 0.006 | BJ15: 0
S16: 10 | W16: 100 | X16: 0 | Y16: 10 | AB16: 5 | AC16: =(AB25/0.4)*AA15 -> 0 | BB16: 0.007 | BC16: 59.99774527 | BD16: 59.99516034 | BE16: 0.007 | BG16: 0.007 | BH16: 0 | BI16: 0.007 | BJ16: 0
AB17: 11.5 | AC17: =(AB26/0.4)*AA15 -> 0 | BB17: 0.008 | BC17: 59.9974237 | BD17: 59.9944714 | BE17: 0.008 | BG17: 0.008 | BH17: 0 | BI17: 0.008 | BJ17: 0
AB18: 16 | AC18: =(AB27/0.4)*AA15 -> 0 | BB18: 0.009 | BC18: 59.99710226 | BD18: 59.99378307 | BE18: 0.009 | BG18: 0.009 | BH18: 0 | BI18: 0.009 | BJ18: 0
BB19: 0.01 | BC19: 59.99678095 | BD19: 59.99309535 | BE19: 0.01 | BG19: 0.01 | BH19: 0 | BI19: 0.01 | BJ19: 0
AA20: Synthetic Inertia Injections for 40% Penetration | BB20: 0.011 | BC20: 59.99645977 | BD20: 59.99240823 | BE20: 0.011 | BG20: 0.011 | BH20: 0 | BI20: 0.011 | BJ20: 0
AA21: Time | AB21: Power Injected | AC21: Response | BB21: 0.012 | BC21: 59.99613872 | BD21: 59.99172172 | BE21: 0.012 | BG21: 0.012 | BH21: 0 | BI21: 0.012 | BJ21: 0
AA22: (s) | AB22: (pu of P0) | AC22: (s) | BB22: 0.013 | BC22: 59.99581781 | BD22: 59.99103582 | BE22: 0.013 | BG22: 0.013 | BH22: 0 | BI22: 0.013 | BJ22: 0
BB23: 0.014 | BC23: 59.99549702 | BD23: 59.99035052 | BE23: 0.014 | BG23: 0.014 | BH23: 0 | BI23: 0.014 | BJ23: 0
AA24: 1.5 | AB24: 0.026 | AC24: 1 | BB24: 0.015 | BC24: 59.99517637 | BD24: 59.98966583 | BE24: 0.015 | BG24: 0.015 | BH24: 0 | BI24: 0.015 | BJ24: 0
AA25: 4 | AB25: -0.101 | AC25: 15.5 | BB25: 0.016 | BC25: 59.99485585 | BD25: 59.98898174 | BE25: 0.016 | BG25: 0.016 | BH25: 0 | BI25: 0.016 | BJ25: 0
AA26: 12.5 | AB26: 0.03 | AC26: 14 | BB26: 0.017 | BC26: 59.99453547 | BD26: 59.98829825 | BE26: 0.017 | BG26: 0.017 | BH26: 0 | BI26: 0.017 | BJ26: 0
AA27: 17 | AB27: 0.045 | AC27: 11 | BB27: 0.018 | BC27: 59.99421521 | BD27: 59.98761537 | BE27: 0.018 | BG27: 0.018 | BH27: 0 | BI27: 0.018 | BJ27: 0
BB28: 0.019 | BC28: 59.99389508 | BD28: 59.98693309 | BE28: 0.019 | BG28: 0.019 | BH28: 0 | BI28: 0.019 | BJ28: 0
BB29: 0.02 | BC29: 59.99357509 | BD29: 59.98625142 | BE29: 0.02 | BG29: 0.02 | BH29: 0 | BI29: 0.02 | BJ29: 0
BB30: 0.021 | BC30: 59.99325523 | BD30: 59.98557035 | BE30: 0.021 | BG30: 0.021 | BH30: 0 | BI30: 0.021 | BJ30: 0
BB31: 0.022 | BC31: 59.9929355 | BD31: 59.98488987 | BE31: 0.022 | BG31: 0.022 | BH31: 0 | BI31: 0.022 | BJ31: 0
BB32: 0.023 | BC32: 59.9926159 | BD32: 59.98421 | BE32: 0.023 | BG32: 0.023 | BH32: 0 | BI32: 0.023 | BJ32: 0
BB33: 0.024 | BC33: 59.99229643 | BD33: 59.98353073 | BE33: 0.024 | BG33: 0.024 | BH33: 0 | BI33: 0.024 | BJ33: 0
BB34: 0.025 | BC34: 59.9919771 | BD34: 59.98285206 | BE34: 0.025 | BG34: 0.025 | BH34: 0 | BI34: 0.025 | BJ34: 0
BB35: 0.026 | BC35: 59.99165789 | BD35: 59.98217399 | BE35: 0.026 | BG35: 0.026 | BH35: 0 | BI35: 0.026 | BJ35: 0
BB36: 0.027 | BC36: 59.99133882 | BD36: 59.98149651 | BE36: 0.027 | BG36: 0.027 | BH36: 0 | BI36: 0.027 | BJ36: 0
BB37: 0.028 | BC37: 59.99101987 | BD37: 59.98081964 | BE37: 0.028 | BG37: 0.028 | BH37: 0 | BI37: 0.028 | BJ37: 0
BB38: 0.029 | BC38: 59.99070106 | BD38: 59.98014336 | BE38: 0.029 | BG38: 0.029 | BH38: 0 | BI38: 0.029 | BJ38: 0
BB39: 0.03 | BC39: 59.99038238 | BD39: 59.97946768 | BE39: 0.03 | BG39: 0.03 | BH39: 0 | BI39: 0.03 | BJ39: 0
BB40: 0.031 | BC40: 59.99006383 | BD40: 59.97879259 | BE40: 0.031 | BG40: 0.031 | BH40: 0 | BI40: 0.031 | BJ40: 0
BB41: 0.032 | BC41: 59.98974541 | BD41: 59.97811811 | BE41: 0.032 | BG41: 0.032 | BH41: 0 | BI41: 0.032 | BJ41: 0
BB42: 0.033 | BC42: 59.98942712 | BD42: 59.97744421 | BE42: 0.033 | BG42: 0.033 | BH42: 0 | BI42: 0.033 | BJ42: 0
BB43: 0.034 | BC43: 59.98910897 | BD43: 59.97677092 | BE43: 0.034 | BG43: 0.034 | BH43: 0 | BI43: 0.034 | BJ43: 0
BB44: 0.035 | BC44: 59.98879094 | BD44: 59.97609821 | BE44: 0.035 | BG44: 0.035 | BH44: 0 | BI44: 0.035 | BJ44: 0
BB45: 0.036 | BC45: 59.98847304 | BD45: 59.9754261 | BE45: 0.036 | BG45: 0.036 | BH45: 0 | BI45: 0.036 | BJ45: 0
BB46: 0.037 | BC46: 59.98815528 | BD46: 59.97475459 | BE46: 0.037 | BG46: 0.037 | BH46: 0 | BI46: 0.037 | BJ46: 0
BB47: 0.038 | BC47: 59.98783764 | BD47: 59.97408367 | BE47: 0.038 | BG47: 0.038 | BH47: 0 | BI47: 0.038 | BJ47: 0
BB48: 0.039 | BC48: 59.98752014 | BD48: 59.97341334 | BE48: 0.039 | BG48: 0.039 | BH48: 0 | BI48: 0.039 | BJ48: 0
BB49: 0.04 | BC49: 59.98720276 | BD49: 59.9727436 | BE49: 0.04 | BG49: 0.04 | BH49: 0 | BI49: 0.04 | BJ49: 0
BB50: 0.041 | BC50: 59.98688552 | BD50: 59.97207445 | BE50: 0.041 | BG50: 0.041 | BH50: 0 | BI50: 0.041 | BJ50: 0
BB51: 0.042 | BC51: 59.9865684 | BD51: 59.97140589 | BE51: 0.042 | BG51: 0.042 | BH51: 0 | BI51: 0.042 | BJ51: 0
BB52: 0.043 | BC52: 59.98625142 | BD52: 59.97073793 | BE52: 0.043 | BG52: 0.043 | BH52: 0 | BI52: 0.043 | BJ52: 0
BB53: 0.044 | BC53: 59.98593457 | BD53: 59.97007055 | BE53: 0.044 | BG53: 0.044 | BH53: 0 | BI53: 0.044 | BJ53: 0
BB54: 0.045 | BC54: 59.98561784 | BD54: 59.96940376 | BE54: 0.045 | BG54: 0.045 | BH54: 0 | BI54: 0.045 | BJ54: 0
BB55: 0.046 | BC55: 59.98530125 | BD55: 59.96873757 | BE55: 0.046 | BG55: 0.046 | BH55: 0 | BI55: 0.046 | BJ55: 0
BB56: 0.047 | BC56: 59.98498479 | BD56: 59.96807196 | BE56: 0.047 | BG56: 0.047 | BH56: 0 | BI56: 0.047 | BJ56: 0
BB57: 0.048 | BC57: 59.98466845 | BD57: 59.96740693 | BE57: 0.048 | BG57: 0.048 | BH57: 0 | BI57: 0.048 | BJ57: 0
BB58: 0.049 | BC58: 59.98435225 | BD58: 59.9667425 | BE58: 0.049 | BG58: 0.049 | BH58: 0 | BI58: 0.049 | BJ58: 0
BB59: 0.05 | BC59: 59.98403618 | BD59: 59.96607865 | BE59: 0.05 | BG59: 0.05 | BH59: 0 | BI59: 0.05 | BJ59: 0
BB60: 0.051 | BC60: 59.98372023 | BD60: 59.96541539 | BE60: 0.051 | BG60: 0.051 | BH60: 0 | BI60: 0.051 | BJ60: 0
BB61: 0.052 | BC61: 59.98340442 | BD61: 59.96475271 | BE61: 0.052 | BG61: 0.052 | BH61: 0 | BI61: 0.052 | BJ61: 0
BB62: 0.053 | BC62: 59.98308874 | BD62: 59.96409062 | BE62: 0.053 | BG62: 0.053 | BH62: 0 | BI62: 0.053 | BJ62: 0
BB63: 0.054 | BC63: 59.98277318 | BD63: 59.96342911 | BE63: 0.054 | BG63: 0.054 | BH63: 0 | BI63: 0.054 | BJ63: 0
BB64: 0.055 | BC64: 59.98245776 | BD64: 59.96276819 | BE64: 0.055 | BG64: 0.055 | BH64: 0 | BI64: 0.055 | BJ64: 0
BB65: 0.056 | BC65: 59.98214246 | BD65: 59.96210785 | BE65: 0.056 | BG65: 0.056 | BH65: 0 | BI65: 0.056 | BJ65: 0
BB66: 0.057 | BC66: 59.9818273 | BD66: 59.96144809 | BE66: 0.057 | BG66: 0.057 | BH66: 0 | BI66: 0.057 | BJ66: 0
BB67: 0.058 | BC67: 59.98151226 | BD67: 59.96078892 | BE67: 0.058 | BG67: 0.058 | BH67: 0 | BI67: 0.058 | BJ67: 0
BB68: 0.059 | BC68: 59.98119735 | BD68: 59.96013033 | BE68: 0.059 | BG68: 0.059 | BH68: 0 | BI68: 0.059 | BJ68: 0
BB69: 0.06 | BC69: 59.98088258 | BD69: 59.95947232 | BE69: 0.06 | BG69: 0.06 | BH69: 0 | BI69: 0.06 | BJ69: 0
BB70: 0.061 | BC70: 59.98056793 | BD70: 59.95881489 | BE70: 0.061 | BG70: 0.061 | BH70: 0 | BI70: 0.061 | BJ70: 0
BB71: 0.062 | BC71: 59.98025341 | BD71: 59.95815804 | BE71: 0.062 | BG71: 0.062 | BH71: 0 | BI71: 0.062 | BJ71: 0
BB72: 0.063 | BC72: 59.97993902 | BD72: 59.95750177 | BE72: 0.063 | BG72: 0.063 | BH72: 0 | BI72: 0.063 | BJ72: 0
BB73: 0.064 | BC73: 59.97962476 | BD73: 59.95684608 | BE73: 0.064 | BG73: 0.064 | BH73: 0 | BI73: 0.064 | BJ73: 0
BB74: 0.065 | BC74: 59.97931063 | BD74: 59.95619097 | BE74: 0.065 | BG74: 0.065 | BH74: 0 | BI74: 0.065 | BJ74: 0
BB75: 0.066 | BC75: 59.97899663 | BD75: 59.95553644 | BE75: 0.066 | BG75: 0.066 | BH75: 0 | BI75: 0.066 | BJ75: 0
BB76: 0.067 | BC76: 59.97868275 | BD76: 59.95488248 | BE76: 0.067 | BG76: 0.067 | BH76: 0 | BI76: 0.067 | BJ76: 0
BB77: 0.068 | BC77: 59.97836901 | BD77: 59.95422911 | BE77: 0.068 | BG77: 0.068 | BH77: 0 | BI77: 0.068 | BJ77: 0
BB78: 0.069 | BC78: 59.97805539 | BD78: 59.95357631 | BE78: 0.069 | BG78: 0.069 | BH78: 0 | BI78: 0.069 | BJ78: 0
BB79: 0.07 | BC79: 59.97774191 | BD79: 59.95292408 | BE79: 0.07 | BG79: 0.07 | BH79: 0 | BI79: 0.07 | BJ79: 0
BB80: 0.071 | BC80: 59.97742855 | BD80: 59.95227244 | BE80: 0.071 | BG80: 0.071 | BH80: 0 | BI80: 0.071 | BJ80: 0
BB81: 0.072 | BC81: 59.97711532 | BD81: 59.95162136 | BE81: 0.072 | BG81: 0.072 | BH81: 0 | BI81: 0.072 | BJ81: 0
BB82: 0.073 | BC82: 59.97680222 | BD82: 59.95097087 | BE82: 0.073 | BG82: 0.073 | BH82: 0 | BI82: 0.073 | BJ82: 0
BB83: 0.074 | BC83: 59.97648925 | BD83: 59.95032094 | BE83: 0.074 | BG83: 0.074 | BH83: 0 | BI83: 0.074 | BJ83: 0
BB84: 0.075 | BC84: 59.9761764 | BD84: 59.94967159 | BE84: 0.075 | BG84: 0.075 | BH84: 0 | BI84: 0.075 | BJ84: 0
BB85: 0.076 | BC85: 59.97586369 | BD85: 59.94902282 | BE85: 0.076 | BG85: 0.076 | BH85: 0 | BI85: 0.076 | BJ85: 0
BB86: 0.077 | BC86: 59.9755511 | BD86: 59.94837462 | BE86: 0.077 | BG86: 0.077 | BH86: 0 | BI86: 0.077 | BJ86: 0
BB87: 0.078 | BC87: 59.97523864 | BD87: 59.94772698 | BE87: 0.078 | BG87: 0.078 | BH87: 0 | BI87: 0.078 | BJ87: 0
BB88: 0.079 | BC88: 59.97492632 | BD88: 59.94707993 | BE88: 0.079 | BG88: 0.079 | BH88: 0 | BI88: 0.079 | BJ88: 0
BB89: 0.08 | BC89: 59.97461411 | BD89: 59.94643344 | BE89: 0.08 | BG89: 0.08 | BH89: 0 | BI89: 0.08 | BJ89: 0
BB90: 0.081 | BC90: 59.97430204 | BD90: 59.94578752 | BE90: 0.081 | BG90: 0.081 | BH90: 0 | BI90: 0.081 | BJ90: 0
BB91: 0.082 | BC91: 59.9739901 | BD91: 59.94514218 | BE91: 0.082 | BG91: 0.082 | BH91: 0 | BI91: 0.082 | BJ91: 0
BB92: 0.083 | BC92: 59.97367828 | BD92: 59.9444974 | BE92: 0.083 | BG92: 0.083 | BH92: 0 | BI92: 0.083 | BJ92: 0
BB93: 0.084 | BC93: 59.97336659 | BD93: 59.94385319 | BE93: 0.084 | BG93: 0.084 | BH93: 0 | BI93: 0.084 | BJ93: 0
BB94: 0.085 | BC94: 59.97305503 | BD94: 59.94320955 | BE94: 0.085 | BG94: 0.085 | BH94: 0 | BI94: 0.085 | BJ94: 0
BB95: 0.086 | BC95: 59.9727436 | BD95: 59.94256648 | BE95: 0.086 | BG95: 0.086 | BH95: 0 | BI95: 0.086 | BJ95: 0
BB96: 0.087 | BC96: 59.97243229 | BD96: 59.94192398 | BE96: 0.087 | BG96: 0.087 | BH96: 0 | BI96: 0.087 | BJ96: 0
BB97: 0.088 | BC97: 59.97212112 | BD97: 59.94128204 | BE97: 0.088 | BG97: 0.088 | BH97: 0 | BI97: 0.088 | BJ97: 0
BB98: 0.089 | BC98: 59.97181007 | BD98: 59.94064068 | BE98: 0.089 | BG98: 0.089 | BH98: 0 | BI98: 0.089 | BJ98: 0
BB99: 0.09 | BC99: 59.97149915 | BD99: 59.93999987 | BE99: 0.09 | BG99: 0.09 | BH99: 0 | BI99: 0.09 | BJ99: 0
BB100: 0.091 | BC100: 59.97118835 | BD100: 59.93935964 | BE100: 0.091 | BG100: 0.091 | BH100: 0 | BI100: 0.091 | BJ100: 0
BB101: 0.092 | BC101: 59.97087769 | BD101: 59.93871997 | BE101: 0.092 | BG101: 0.092 | BH101: 0 | BI101: 0.092 | BJ101: 0
BB102: 0.093 | BC102: 59.97056715 | BD102: 59.93808086 | BE102: 0.093 | BG102: 0.093 | BH102: 0 | BI102: 0.093 | BJ102: 0
BB103: 0.094 | BC103: 59.97025674 | BD103: 59.93744232 | BE103: 0.094 | BG103: 0.094 | BH103: 0 | BI103: 0.094 | BJ103: 0
BB104: 0.095 | BC104: 59.96994645 | BD104: 59.93680434 | BE104: 0.095 | BG104: 0.095 | BH104: 0 | BI104: 0.095 | BJ104: 0
BB105: 0.096 | BC105: 59.9696363 | BD105: 59.93616693 | BE105: 0.096 | BG105: 0.096 | BH105: 0 | BI105: 0.096 | BJ105: 0
BB106: 0.097 | BC106: 59.96932627 | BD106: 59.93553007 | BE106: 0.097 | BG106: 0.097 | BH106: 0 | BI106: 0.097 | BJ106: 0
BB107: 0.098 | BC107: 59.96901637 | BD107: 59.93489378 | BE107: 0.098 | BG107: 0.098 | BH107: 0 | BI107: 0.098 | BJ107: 0
BB108: 0.099 | BC108: 59.96870659 | BD108: 59.93425806 | BE108: 0.099 | BG108: 0.099 | BH108: 0 | BI108: 0.099 | BJ108: 0
BB109: 0.1 | BC109: 59.96839695 | BD109: 59.93362289 | BE109: 0.1 | BG109: 0.1 | BH109: 0 | BI109: 0.1 | BJ109: 0 | CJ109: 5.555555556
BB110: 0.101 | BC110: 59.96808743 | BD110: 59.93298828 | BE110: 0.101 | BG110: 0.101 | BH110: 0 | BI110: 0.101 | BJ110: 0 | CJ110: 5.555555556
BB111: 0.102 | BC111: 59.96777804 | BD111: 59.93235424 | BE111: 0.102 | BG111: 0.102 | BH111: 0 | BI111: 0.102 | BJ111: 0 | CJ111: 5.555555556
BB112: 0.103 | BC112: 59.96746877 | BD112: 59.93172075 | BE112: 0.103 | BG112: 0.103 | BH112: 0 | BI112: 0.103 | BJ112: 0 | CJ112: 5.555555556
BB113: 0.104 | BC113: 59.96715963 | BD113: 59.93108783 | BE113: 0.104 | BG113: 0.104 | BH113: 0 | BI113: 0.104 | BJ113: 0 | CJ113: 5.555555556
BB114: 0.105 | BC114: 59.96685062 | BD114: 59.93045546 | BE114: 0.105 | BG114: 0.105 | BH114: 0 | BI114: 0.105 | BJ114: 0 | CJ114: 5.555555556
BB115: 0.106 | BC115: 59.96654174 | BD115: 59.92982365 | BE115: 0.106 | BG115: 0.106 | BH115: 0 | BI115: 0.106 | BJ115: 0 | CJ115: 5.555555556
BB116: 0.107 | BC116: 59.96623298 | BD116: 59.9291924 | BE116: 0.107 | BG116: 0.107 | BH116: 0 | BI116: 0.107 | BJ116: 0 | CJ116: 5.555555556
BB117: 0.108 | BC117: 59.96592435 | BD117: 59.92856171 | BE117: 0.108 | BG117: 0.108 | BH117: 0 | BI117: 0.108 | BJ117: 0 | CJ117: 5.555555556
BB118: 0.109 | BC118: 59.96561585 | BD118: 59.92793157 | BE118: 0.109 | BG118: 0.109 | BH118: 0 | BI118: 0.109 | BJ118: 0 | CJ118: 5.555555556
BB119: 0.11 | BC119: 59.96530747 | BD119: 59.92730199 | BE119: 0.11 | BG119: 0.11 | BH119: 0 | BI119: 0.11 | BJ119: 0 | CJ119: 5.555555556
BB120: 0.111 | BC120: 59.96499922 | BD120: 59.92667296 | BE120: 0.111 | BG120: 0.111 | BH120: 0 | BI120: 0.111 | BJ120: 0 | CJ120: 5.555555556
BB121: 0.112 | BC121: 59.9646911 | BD121: 59.92604449 | BE121: 0.112 | BG121: 0.112 | BH121: 0 | BI121: 0.112 | BJ121: 0 | CJ121: 5.555555556
BB122: 0.113 | BC122: 59.9643831 | BD122: 59.92541658 | BE122: 0.113 | BG122: 0.113 | BH122: 0 | BI122: 0.113 | BJ122: 0 | CJ122: 5.555555556
BB123: 0.114 | BC123: 59.96407523 | BD123: 59.92478922 | BE123: 0.114 | BG123: 0.114 | BH123: 0 | BI123: 0.114 | BJ123: 0 | CJ123: 5.555555556
BB124: 0.115 | BC124: 59.96376748 | BD124: 59.92416241 | BE124: 0.115 | BG124: 0.115 | BH124: 0 | BI124: 0.115 | BJ124: 0 | CJ124: 5.555555556
BB125: 0.116 | BC125: 59.96345987 | BD125: 59.92353616 | BE125: 0.116 | BG125: 0.116 | BH125: 0 | BI125: 0.116 | BJ125: 0 | CJ125: 5.555555556
BB126: 0.117 | BC126: 59.96315238 | BD126: 59.92291046 | BE126: 0.117 | BG126: 0.117 | BH126: 0 | BI126: 0.117 | BJ126: 0 | CJ126: 5.555555556
BB127: 0.118 | BC127: 59.96284501 | BD127: 59.92228531 | BE127: 0.118 | BG127: 0.118 | BH127: 0 | BI127: 0.118 | BJ127: 0 | CJ127: 5.555555556
BB128: 0.119 | BC128: 59.96253777 | BD128: 59.92166072 | BE128: 0.119 | BG128: 0.119 | BH128: 0 | BI128: 0.119 | BJ128: 0 | CJ128: 5.555555556
BB129: 0.12 | BC129: 59.96223066 | BD129: 59.92103667 | BE129: 0.12 | BG129: 0.12 | BH129: 0 | BI129: 0.12 | BJ129: 0 | CJ129: 5.555555556
BB130: 0.121 | BC130: 59.96192367 | BD130: 59.92041318 | BE130: 0.121 | BG130: 0.121 | BH130: 0 | BI130: 0.121 | BJ130: 0 | CJ130: 5.555555556
BB131: 0.122 | BC131: 59.96161681 | BD131: 59.91979024 | BE131: 0.122 | BG131: 0.122 | BH131: 0 | BI131: 0.122 | BJ131: 0 | CJ131: 5.555555556
BB132: 0.123 | BC132: 59.96131008 | BD132: 59.91916785 | BE132: 0.123 | BG132: 0.123 | BH132: 0 | BI132: 0.123 | BJ132: 0 | CJ132: 5.555555556
BB133: 0.124 | BC133: 59.96100347 | BD133: 59.918546 | BE133: 0.124 | BG133: 0.124 | BH133: 0 | BI133: 0.124 | BJ133: 0 | CJ133: 5.555555556
BB134: 0.125 | BC134: 59.96069699 | BD134: 59.91792471 | BE134: 0.125 | BG134: 0.125 | BH134: 0 | BI134: 0.125 | BJ134: 0 | CJ134: 5.555555556
BB135: 0.126 | BC135: 59.96039063 | BD135: 59.91730396 | BE135: 0.126 | BG135: 0.126 | BH135: 0 | BI135: 0.126 | BJ135: 0 | CJ135: 5.555555556
BB136: 0.127 | BC136: 59.9600844 | BD136: 59.91668377 | BE136: 0.127 | BG136: 0.127 | BH136: 0 | BI136: 0.127 | BJ136: 0 | CJ136: 5.555555556
BB137: 0.128 | BC137: 59.9597783 | BD137: 59.91606412 | BE137: 0.128 | BG137: 0.128 | BH137: 0 | BI137: 0.128 | BJ137: 0 | CJ137: 5.555555556
BB138: 0.129 | BC138: 59.95947232 | BD138: 59.91544502 | BE138: 0.129 | BG138: 0.129 | BH138: 0 | BI138: 0.129 | BJ138: 0 | CJ138: 5.555555556
BB139: 0.13 | BC139: 59.95916646 | BD139: 59.91482646 | BE139: 0.13 | BG139: 0.13 | BH139: 0 | BI139: 0.13 | BJ139: 0 | CJ139: 5.555555556
BB140: 0.131 | BC140: 59.95886074 | BD140: 59.91420845 | BE140: 0.131 | BG140: 0.131 | BH140: 0 | BI140: 0.131 | BJ140: 0 | CJ140: 5.555555556
BB141: 0.132 | BC141: 59.95855513 | BD141: 59.91359099 | BE141: 0.132 | BG141: 0.132 | BH141: 0 | BI141: 0.132 | BJ141: 0 | CJ141: 5.555555556
BB142: 0.133 | BC142: 59.95824966 | BD142: 59.91297407 | BE142: 0.133 | BG142: 0.133 | BH142: 0 | BI142: 0.133 | BJ142: 0 | CJ142: 5.555555556
BB143: 0.134 | BC143: 59.95794431 | BD143: 59.91235769 | BE143: 0.134 | BG143: 0.134 | BH143: 0 | BI143: 0.134 | BJ143: 0 | CJ143: 5.555555556
BB144: 0.135 | BC144: 59.95763908 | BD144: 59.91174186 | BE144: 0.135 | BG144: 0.135 | BH144: 0 | BI144: 0.135 | BJ144: 0 | CJ144: 5.555555556
BB145: 0.136 | BC145: 59.95733398 | BD145: 59.91112658 | BE145: 0.136 | BG145: 0.136 | BH145: 0 | BI145: 0.136 | BJ145: 0 | CJ145: 5.555555556
BB146: 0.137 | BC146: 59.95702901 | BD146: 59.91051184 | BE146: 0.137 | BG146: 0.137 | BH146: 0 | BI146: 0.137 | BJ146: 0 | CJ146: 5.555555556
BB147: 0.138 | BC147: 59.95672416 | BD147: 59.90989764 | BE147: 0.138 | BG147: 0.138 | BH147: 0 | BI147: 0.138 | BJ147: 0 | CJ147: 5.555555556
BB148: 0.139 | BC148: 59.95641943 | BD148: 59.90928398 | BE148: 0.139 | BG148: 0.139 | BH148: 0 | BI148: 0.139 | BJ148: 0 | CJ148: 5.555555556
BB149: 0.14 | BC149: 59.95611483 | BD149: 59.90867086 | BE149: 0.14 | BG149: 0.14 | BH149: 0 | BI149: 0.14 | BJ149: 0 | CJ149: 5.555555556
BB150: 0.141 | BC150: 59.95581036 | BD150: 59.90805829 | BE150: 0.141 | BG150: 0.141 | BH150: 0 | BI150: 0.141 | BJ150: 0 | CJ150: 5.555555556
BB151: 0.142 | BC151: 59.95550601 | BD151: 59.90744625 | BE151: 0.142 | BG151: 0.142 | BH151: 0 | BI151: 0.142 | BJ151: 0 | CJ151: 5.555555556
BB152: 0.143 | BC152: 59.95520179 | BD152: 59.90683476 | BE152: 0.143 | BG152: 0.143 | BH152: 0 | BI152: 0.143 | BJ152: 0 | CJ152: 5.555555556
BB153: 0.144 | BC153: 59.95489769 | BD153: 59.90622381 | BE153: 0.144 | BG153: 0.144 | BH153: 0 | BI153: 0.144 | BJ153: 0 | CJ153: 5.555555556
BB154: 0.145 | BC154: 59.95459371 | BD154: 59.90561339 | BE154: 0.145 | BG154: 0.145 | BH154: 0 | BI154: 0.145 | BJ154: 0 | CJ154: 5.555555556
BB155: 0.146 | BC155: 59.95428986 | BD155: 59.90500352 | BE155: 0.146 | BG155: 0.146 | BH155: 0 | BI155: 0.146 | BJ155: 0 | CJ155: 5.555555556
BB156: 0.147 | BC156: 59.95398614 | BD156: 59.90439418 | BE156: 0.147 | BG156: 0.147 | BH156: 0 | BI156: 0.147 | BJ156: 0 | CJ156: 5.555555556
BB157: 0.148 | BC157: 59.95368254 | BD157: 59.90378538 | BE157: 0.148 | BG157: 0.148 | BH157: 0 | BI157: 0.148 | BJ157: 0 | CJ157: 5.555555556
BB158: 0.149 | BC158: 59.95337906 | BD158: 59.90317712 | BE158: 0.149 | BG158: 0.149 | BH158: 0 | BI158: 0.149 | BJ158: 0 | CJ158: 5.555555556
BB159: 0.15 | BC159: 59.95307571 | BD159: 59.9025694 | BE159: 0.15 | BG159: 0.15 | BH159: 0 | BI159: 0.15 | BJ159: 0 | CJ159: 5.555555556
BB160: 0.151 | BC160: 59.95277249 | BD160: 59.90196221 | BE160: 0.151 | BG160: 0.151 | BH160: 0 | BI160: 0.151 | BJ160: 0 | CJ160: 5.555555556
BB161: 0.152 | BC161: 59.95246939 | BD161: 59.90135556 | BE161: 0.152 | BG161: 0.152 | BH161: 0 | BI161: 0.152 | BJ161: 0 | CJ161: 5.555555556
BB162: 0.153 | BC162: 59.95216641 | BD162: 59.90074944 | BE162: 0.153 | BG162: 0.153 | BH162: 0 | BI162: 0.153 | BJ162: 0 | CJ162: 5.555555556
BB163: 0.154 | BC163: 59.95186356 | BD163: 59.90014386 | BE163: 0.154 | BG163: 0.154 | BH163: 0 | BI163: 0.154 | BJ163: 0 | CJ163: 5.555555556
BB164: 0.155 | BC164: 59.95156083 | BD164: 59.89953882 | BE164: 0.155 | BG164: 0.155 | BH164: 0 | BI164: 0.155 | BJ164: 0 | CJ164: 5.555555556
BB165: 0.156 | BC165: 59.95125823 | BD165: 59.89893431 | BE165: 0.156 | BG165: 0.156 | BH165: 0 | BI165: 0.156 | BJ165: 0 | CJ165: 5.555555556
BB166: 0.157 | BC166: 59.95095575 | BD166: 59.89833033 | BE166: 0.157 | BG166: 0.157 | BH166: 0 | BI166: 0.157 | BJ166: 0 | CJ166: 5.555555556
BB167: 0.158 | BC167: 59.95065339 | BD167: 59.89772688 | BE167: 0.158 | BG167: 0.158 | BH167: 0 | BI167: 0.158 | BJ167: 0 | CJ167: 5.555555556
BB168: 0.159 | BC168: 59.95035116 | BD168: 59.89712397 | BE168: 0.159 | BG168: 0.159 | BH168: 0 | BI168: 0.159 | BJ168: 0 | CJ168: 5.555555556
BB169: 0.16 | BC169: 59.95004905 | BD169: 59.89652159 | BE169: 0.16 | BG169: 0.16 | BH169: 0 | BI169: 0.16 | BJ169: 0 | CJ169: 5.555555556
BB170: 0.161 | BC170: 59.94974707 | BD170: 59.89591975 | BE170: 0.161 | BG170: 0.161 | BH170: 0 | BI170: 0.161 | BJ170: 0 | CJ170: 5.555555556
BB171: 0.162 | BC171: 59.94944521 | BD171: 59.89531843 | BE171: 0.162 | BG171: 0.162 | BH171: 0 | BI171: 0.162 | BJ171: 0 | CJ171: 5.555555556
BB172: 0.163 | BC172: 59.94914348 | BD172: 59.89471764 | BE172: 0.163 | BG172: 0.163 | BH172: 0 | BI172: 0.163 | BJ172: 0 | CJ172: 5.555555556
BB173: 0.164 | BC173: 59.94884187 | BD173: 59.89411739 | BE173: 0.164 | BG173: 0.164 | BH173: 0 | BI173: 0.164 | BJ173: 0 | CJ173: 5.555555556
BB174: 0.165 | BC174: 59.94854038 | BD174: 59.89351767 | BE174: 0.165 | BG174: 0.165 | BH174: 0 | BI174: 0.165 | BJ174: 0 | CJ174: 5.555555556
BB175: 0.166 | BC175: 59.94823902 | BD175: 59.89291847 | BE175: 0.166 | BG175: 0.166 | BH175: 0 | BI175: 0.166 | BJ175: 0 | CJ175: 5.555555556
BB176: 0.167 | BC176: 59.94793778 | BD176: 59.8923198 | BE176: 0.167 | BG176: 0.167 | BH176: 0 | BI176: 0.167 | BJ176: 0 | CJ176: 5.555555556
BB177: 0.168 | BC177: 59.94763666 | BD177: 59.89172167 | BE177: 0.168 | BG177: 0.168 | BH177: 0 | BI177: 0.168 | BJ177: 0 | CJ177: 5.555555556
BB178: 0.169 | BC178: 59.94733567 | BD178: 59.89112406 | BE178: 0.169 | BG178: 0.169 | BH178: 0 | BI178: 0.169 | BJ178: 0 | CJ178: 5.555555556
BB179: 0.17 | BC179: 59.9470348 | BD179: 59.89052698 | BE179: 0.17 | BG179: 0.17 | BH179: 0 | BI179: 0.17 | BJ179: 0 | CJ179: 5.555555556
BB180: 0.171 | BC180: 59.94673406 | BD180: 59.88993042 | BE180: 0.171 | BG180: 0.171 | BH180: 0 | BI180: 0.171 | BJ180: 0 | CJ180: 5.555555556
BB181: 0.172 | BC181: 59.94643344 | BD181: 59.88933439 | BE181: 0.172 | BG181: 0.172 | BH181: 0 | BI181: 0.172 | BJ181: 0 | CJ181: 5.555555556
BB182: 0.173 | BC182: 59.94613294 | BD182: 59.88873889 | BE182: 0.173 | BG182: 0.173 | BH182: 0 | BI182: 0.173 | BJ182: 0 | CJ182: 5.555555556
BB183: 0.174 | BC183: 59.94583257 | BD183: 59.88814392 | BE183: 0.174 | BG183: 0.174 | BH183: 0 | BI183: 0.174 | BJ183: 0 | CJ183: 5.555555556
BB184: 0.175 | BC184: 59.94553232 | BD184: 59.88754947 | BE184: 0.175 | BG184: 0.175 | BH184: 0 | BI184: 0.175 | BJ184: 0 | CJ184: 5.555555556
BB185: 0.176 | BC185: 59.94523219 | BD185: 59.88695554 | BE185: 0.176 | BG185: 0.176 | BH185: 0 | BI185: 0.176 | BJ185: 0 | CJ185: 5.555555556
BB186: 0.177 | BC186: 59.94493219 | BD186: 59.88636214 | BE186: 0.177 | BG186: 0.177 | BH186: 0 | BI186: 0.177 | BJ186: 0 | CJ186: 5.555555556
BB187: 0.178 | BC187: 59.9446323 | BD187: 59.88576926 | BE187: 0.178 | BG187: 0.178 | BH187: 0 | BI187: 0.178 | BJ187: 0 | CJ187: 5.555555556
BB188: 0.179 | BC188: 59.94433255 | BD188: 59.88517691 | BE188: 0.179 | BG188: 0.179 | BH188: 0 | BI188: 0.179 | BJ188: 0 | CJ188: 5.555555556
BB189: 0.18 | BC189: 59.94403291 | BD189: 59.88458508 | BE189: 0.18 | BG189: 0.18 | BH189: 0 | BI189: 0.18 | BJ189: 0 | CJ189: 5.555555556
BB190: 0.181 | BC190: 59.9437334 | BD190: 59.88399377 | BE190: 0.181 | BG190: 0.181 | BH190: 0 | BI190: 0.181 | BJ190: 0 | CJ190: 5.555555556
BB191: 0.182 | BC191: 59.94343401 | BD191: 59.88340298 | BE191: 0.182 | BG191: 0.182 | BH191: 0 | BI191: 0.182 | BJ191: 0 | CJ191: 5.555555556
BB192: 0.183 | BC192: 59.94313475 | BD192: 59.88281272 | BE192: 0.183 | BG192: 0.183 | BH192: 0 | BI192: 0.183 | BJ192: 0 | CJ192: 5.555555556
BB193: 0.184 | BC193: 59.94283561 | BD193: 59.88222298 | BE193: 0.184 | BG193: 0.184 | BH193: 0 | BI193: 0.184 | BJ193: 0 | CJ193: 5.555555556
BB194: 0.185 | BC194: 59.94253659 | BD194: 59.88163375 | BE194: 0.185 | BG194: 0.185 | BH194: 0 | BI194: 0.185 | BJ194: 0 | CJ194: 5.555555556
BB195: 0.186 | BC195: 59.94223769 | BD195: 59.88104505 | BE195: 0.186 | BG195: 0.186 | BH195: 0 | BI195: 0.186 | BJ195: 0 | CJ195: 5.555555556
BB196: 0.187 | BC196: 59.94193892 | BD196: 59.88045687 | BE196: 0.187 | BG196: 0.187 | BH196: 0 | BI196: 0.187 | BJ196: 0 | CJ196: 5.555555556
BB197: 0.188 | BC197: 59.94164026 | BD197: 59.8798692 | BE197: 0.188 | BG197: 0.188 | BH197: 0 | BI197: 0.188 | BJ197: 0 | CJ197: 5.555555556
BB198: 0.189 | BC198: 59.94134174 | BD198: 59.87928206 | BE198: 0.189 | BG198: 0.189 | BH198: 0 | BI198: 0.189 | BJ198: 0 | CJ198: 5.555555556
BB199: 0.19 | BC199: 59.94104333 | BD199: 59.87869543 | BE199: 0.19 | BG199: 0.19 | BH199: 0 | BI199: 0.19 | BJ199: 0 | CJ199: 5.555555556
BB200: 0.191 | BC200: 59.94074505 | BD200: 59.87810933 | BE200: 0.191 | BG200: 0.191 | BH200: 0 | BI200: 0.191 | BJ200: 0 | CJ200: 5.555555556
BB201: 0.192 | BC201: 59.94044689 | BD201: 59.87752374 | BE201: 0.192 | BG201: 0.192 | BH201: 0 | BI201: 0.192 | BJ201: 0 | CJ201: 5.555555556
BB202: 0.193 | BC202: 59.94014885 | BD202: 59.87693866 | BE202: 0.193 | BG202: 0.193 | BH202: 0 | BI202: 0.193 | BJ202: 0 | CJ202: 5.555555556
... 923 more rows

Sheet Synthetic Inertia Response
Z1: 1010
B2: P0 | D2: =PzeroPlusNo -> 34606.10726 | M2: 80/1010 | P2: =(80*11748)/1010 -> 930.5346535
B3: Wind Generation | D3: =WindGeneration -> 0 | M3: =80/1010 -> 0.07920792079 | Z3: peak (pu) | AA3: =77/110 -> 0.7
V5: in pu of | Z5: Nadir | AA5: =65/1010 -> 0.06435643564
V6: wind generation
B8: Time | C8: Base | D8: WhatIf | T8: Time | U8: Base | V8: WhatIf
B9: 0 | C9: 0 | D9: 0 | T9: 0 | U9: 0 | V9: =D9/$D$3 -> 
B10: 0.001 | C10: 0 | D10: 0 | T10: 0.001 | U10: 0 | V10: =D10/$D$3 -> 
B11: 0.002 | C11: 0 | D11: 0 | T11: 0.002 | U11: 0
B12: 0.003 | C12: 0 | D12: 0 | T12: 0.003 | U12: 0
B13: 0.004 | C13: 0 | D13: 0 | T13: 0.004 | U13: 0
B14: 0.005 | C14: 0 | D14: 0 | T14: 0.005 | U14: 0
B15: 0.006 | C15: 0 | D15: 0 | T15: 0.006 | U15: 0
B16: 0.007 | C16: 0 | D16: 0 | T16: 0.007 | U16: 0
B17: 0.008 | C17: 0 | D17: 0 | T17: 0.008 | U17: 0
B18: 0.009 | C18: 0 | D18: 0 | T18: 0.009 | U18: 0
B19: 0.01 | C19: 0 | D19: 0 | T19: 0.01 | U19: 0
B20: 0.011 | C20: 0 | D20: 0 | T20: 0.011 | U20: 0
B21: 0.012 | C21: 0 | D21: 0 | T21: 0.012 | U21: 0
B22: 0.013 | C22: 0 | D22: 0 | T22: 0.013 | U22: 0
B23: 0.014 | C23: 0 | D23: 0 | T23: 0.014 | U23: 0
B24: 0.015 | C24: 0 | D24: 0 | T24: 0.015 | U24: 0
B25: 0.016 | C25: 0 | D25: 0 | T25: 0.016 | U25: 0
B26: 0.017 | C26: 0 | D26: 0 | T26: 0.017 | U26: 0
B27: 0.018 | C27: 0 | D27: 0 | T27: 0.018 | U27: 0
B28: 0.019 | C28: 0 | D28: 0 | T28: 0.019 | U28: 0
B29: 0.02 | C29: 0 | D29: 0 | T29: 0.02 | U29: 0
B30: 0.021 | C30: 0 | D30: 0 | T30: 0.021 | U30: 0
B31: 0.022 | C31: 0 | D31: 0 | T31: 0.022 | U31: 0
B32: 0.023 | C32: 0 | D32: 0 | T32: 0.023 | U32: 0
B33: 0.024 | C33: 0 | D33: 0 | T33: 0.024 | U33: 0
B34: 0.025 | C34: 0 | D34: 0 | T34: 0.025 | U34: 0
B35: 0.026 | C35: 0 | D35: 0 | T35: 0.026 | U35: 0
B36: 0.027 | C36: 0 | D36: 0 | T36: 0.027 | U36: 0
B37: 0.028 | C37: 0 | D37: 0 | T37: 0.028 | U37: 0
B38: 0.029 | C38: 0 | D38: 0 | T38: 0.029 | U38: 0
B39: 0.03 | C39: 0 | D39: 0 | T39: 0.03 | U39: 0
B40: 0.031 | C40: 0 | D40: 0 | T40: 0.031 | U40: 0
B41: 0.032 | C41: 0 | D41: 0 | T41: 0.032 | U41: 0
B42: 0.033 | C42: 0 | D42: 0 | T42: 0.033 | U42: 0
B43: 0.034 | C43: 0 | D43: 0 | T43: 0.034 | U43: 0
B44: 0.035 | C44: 0 | D44: 0 | T44: 0.035 | U44: 0
B45: 0.036 | C45: 0 | D45: 0 | T45: 0.036 | U45: 0
B46: 0.037 | C46: 0 | D46: 0 | T46: 0.037 | U46: 0
B47: 0.038 | C47: 0 | D47: 0 | T47: 0.038 | U47: 0
B48: 0.039 | C48: 0 | D48: 0 | T48: 0.039 | U48: 0
B49: 0.04 | C49: 0 | D49: 0 | T49: 0.04 | U49: 0
B50: 0.041 | C50: 0 | D50: 0 | T50: 0.041 | U50: 0
B51: 0.042 | C51: 0 | D51: 0 | T51: 0.042 | U51: 0
B52: 0.043 | C52: 0 | D52: 0 | T52: 0.043 | U52: 0
B53: 0.044 | C53: 0 | D53: 0 | T53: 0.044 | U53: 0
B54: 0.045 | C54: 0 | D54: 0 | T54: 0.045 | U54: 0
B55: 0.046 | C55: 0 | D55: 0 | T55: 0.046 | U55: 0
B56: 0.047 | C56: 0 | D56: 0 | T56: 0.047 | U56: 0
B57: 0.048 | C57: 0 | D57: 0 | T57: 0.048 | U57: 0
B58: 0.049 | C58: 0 | D58: 0 | T58: 0.049 | U58: 0
B59: 0.05 | C59: 0 | D59: 0 | T59: 0.05 | U59: 0
B60: 0.051 | C60: 0 | D60: 0 | T60: 0.051 | U60: 0
B61: 0.052 | C61: 0 | D61: 0 | T61: 0.052 | U61: 0
B62: 0.053 | C62: 0 | D62: 0 | T62: 0.053 | U62: 0
B63: 0.054 | C63: 0 | D63: 0 | T63: 0.054 | U63: 0
B64: 0.055 | C64: 0 | D64: 0 | T64: 0.055 | U64: 0
B65: 0.056 | C65: 0 | D65: 0 | T65: 0.056 | U65: 0
B66: 0.057 | C66: 0 | D66: 0 | T66: 0.057 | U66: 0
B67: 0.058 | C67: 0 | D67: 0 | T67: 0.058 | U67: 0
B68: 0.059 | C68: 0 | D68: 0 | T68: 0.059 | U68: 0
B69: 0.06 | C69: 0 | D69: 0 | T69: 0.06 | U69: 0
B70: 0.061 | C70: 0 | D70: 0 | T70: 0.061 | U70: 0
B71: 0.062 | C71: 0 | D71: 0 | T71: 0.062 | U71: 0
B72: 0.063 | C72: 0 | D72: 0 | T72: 0.063 | U72: 0
B73: 0.064 | C73: 0 | D73: 0 | T73: 0.064 | U73: 0
B74: 0.065 | C74: 0 | D74: 0 | T74: 0.065 | U74: 0 | V74: =D74/$D$3 -> 
B75: 0.066 | C75: 0 | D75: 0 | T75: 0.066 | U75: 0
B76: 0.067 | C76: 0 | D76: 0 | T76: 0.067 | U76: 0
B77: 0.068 | C77: 0 | D77: 0 | T77: 0.068 | U77: 0
B78: 0.069 | C78: 0 | D78: 0 | T78: 0.069 | U78: 0
B79: 0.07 | C79: 0 | D79: 0 | T79: 0.07 | U79: 0
B80: 0.071 | C80: 0 | D80: 0 | T80: 0.071 | U80: 0
B81: 0.072 | C81: 0 | D81: 0 | T81: 0.072 | U81: 0
B82: 0.073 | C82: 0 | D82: 0 | T82: 0.073 | U82: 0
B83: 0.074 | C83: 0 | D83: 0 | T83: 0.074 | U83: 0
B84: 0.075 | C84: 0 | D84: 0 | T84: 0.075 | U84: 0
B85: 0.076 | C85: 0 | D85: 0 | T85: 0.076 | U85: 0
B86: 0.077 | C86: 0 | D86: 0 | T86: 0.077 | U86: 0
B87: 0.078 | C87: 0 | D87: 0 | T87: 0.078 | U87: 0
B88: 0.079 | C88: 0 | D88: 0 | T88: 0.079 | U88: 0
B89: 0.08 | C89: 0 | D89: 0 | T89: 0.08 | U89: 0
B90: 0.081 | C90: 0 | D90: 0 | T90: 0.081 | U90: 0
B91: 0.082 | C91: 0 | D91: 0 | T91: 0.082 | U91: 0
B92: 0.083 | C92: 0 | D92: 0 | T92: 0.083 | U92: 0
B93: 0.084 | C93: 0 | D93: 0 | T93: 0.084 | U93: 0
B94: 0.085 | C94: 0 | D94: 0 | T94: 0.085 | U94: 0
B95: 0.086 | C95: 0 | D95: 0 | T95: 0.086 | U95: 0
B96: 0.087 | C96: 0 | D96: 0 | T96: 0.087 | U96: 0
B97: 0.088 | C97: 0 | D97: 0 | T97: 0.088 | U97: 0
B98: 0.089 | C98: 0 | D98: 0 | T98: 0.089 | U98: 0
B99: 0.09 | C99: 0 | D99: 0 | T99: 0.09 | U99: 0
B100: 0.091 | C100: 0 | D100: 0 | T100: 0.091 | U100: 0
B101: 0.092 | C101: 0 | D101: 0 | T101: 0.092 | U101: 0
B102: 0.093 | C102: 0 | D102: 0 | T102: 0.093 | U102: 0
B103: 0.094 | C103: 0 | D103: 0 | T103: 0.094 | U103: 0
B104: 0.095 | C104: 0 | D104: 0 | T104: 0.095 | U104: 0
B105: 0.096 | C105: 0 | D105: 0 | T105: 0.096 | U105: 0
B106: 0.097 | C106: 0 | D106: 0 | T106: 0.097 | U106: 0
B107: 0.098 | C107: 0 | D107: 0 | T107: 0.098 | U107: 0
B108: 0.099 | C108: 0 | D108: 0 | T108: 0.099 | U108: 0
B109: 0.1 | C109: 0 | D109: 0 | T109: 0.1 | U109: 0
B110: 0.101 | C110: 0 | D110: 0 | T110: 0.101 | U110: 0
B111: 0.102 | C111: 0 | D111: 0 | T111: 0.102 | U111: 0
B112: 0.103 | C112: 0 | D112: 0 | T112: 0.103 | U112: 0
B113: 0.104 | C113: 0 | D113: 0 | T113: 0.104 | U113: 0
B114: 0.105 | C114: 0 | D114: 0 | T114: 0.105 | U114: 0
B115: 0.106 | C115: 0 | D115: 0 | T115: 0.106 | U115: 0
B116: 0.107 | C116: 0 | D116: 0 | T116: 0.107 | U116: 0
B117: 0.108 | C117: 0 | D117: 0 | T117: 0.108 | U117: 0
B118: 0.109 | C118: 0 | D118: 0 | T118: 0.109 | U118: 0
B119: 0.11 | C119: 0 | D119: 0 | T119: 0.11 | U119: 0
B120: 0.111 | C120: 0 | D120: 0 | T120: 0.111 | U120: 0
B121: 0.112 | C121: 0 | D121: 0 | T121: 0.112 | U121: 0
B122: 0.113 | C122: 0 | D122: 0 | T122: 0.113 | U122: 0
B123: 0.114 | C123: 0 | D123: 0 | T123: 0.114 | U123: 0
B124: 0.115 | C124: 0 | D124: 0 | T124: 0.115 | U124: 0
B125: 0.116 | C125: 0 | D125: 0 | T125: 0.116 | U125: 0
B126: 0.117 | C126: 0 | D126: 0 | T126: 0.117 | U126: 0
B127: 0.118 | C127: 0 | D127: 0 | T127: 0.118 | U127: 0
B128: 0.119 | C128: 0 | D128: 0 | T128: 0.119 | U128: 0
B129: 0.12 | C129: 0 | D129: 0 | T129: 0.12 | U129: 0
B130: 0.121 | C130: 0 | D130: 0 | T130: 0.121 | U130: 0
B131: 0.122 | C131: 0 | D131: 0 | T131: 0.122 | U131: 0
B132: 0.123 | C132: 0 | D132: 0 | T132: 0.123 | U132: 0
B133: 0.124 | C133: 0 | D133: 0 | T133: 0.124 | U133: 0
B134: 0.125 | C134: 0 | D134: 0 | T134: 0.125 | U134: 0
B135: 0.126 | C135: 0 | D135: 0 | T135: 0.126 | U135: 0
B136: 0.127 | C136: 0 | D136: 0 | T136: 0.127 | U136: 0
B137: 0.128 | C137: 0 | D137: 0 | T137: 0.128 | U137: 0
B138: 0.129 | C138: 0 | D138: 0 | T138: 0.129 | U138: 0 | V138: =D138/$D$3 -> 
B139: 0.13 | C139: 0 | D139: 0 | T139: 0.13 | U139: 0
B140: 0.131 | C140: 0 | D140: 0 | T140: 0.131 | U140: 0
B141: 0.132 | C141: 0 | D141: 0 | T141: 0.132 | U141: 0
B142: 0.133 | C142: 0 | D142: 0 | T142: 0.133 | U142: 0
B143: 0.134 | C143: 0 | D143: 0 | T143: 0.134 | U143: 0
B144: 0.135 | C144: 0 | D144: 0 | T144: 0.135 | U144: 0
B145: 0.136 | C145: 0 | D145: 0 | T145: 0.136 | U145: 0
B146: 0.137 | C146: 0 | D146: 0 | T146: 0.137 | U146: 0
B147: 0.138 | C147: 0 | D147: 0 | T147: 0.138 | U147: 0
B148: 0.139 | C148: 0 | D148: 0 | T148: 0.139 | U148: 0
B149: 0.14 | C149: 0 | D149: 0 | T149: 0.14 | U149: 0
B150: 0.141 | C150: 0 | D150: 0 | T150: 0.141 | U150: 0
B151: 0.142 | C151: 0 | D151: 0 | T151: 0.142 | U151: 0
B152: 0.143 | C152: 0 | D152: 0 | T152: 0.143 | U152: 0
B153: 0.144 | C153: 0 | D153: 0 | T153: 0.144 | U153: 0
B154: 0.145 | C154: 0 | D154: 0 | T154: 0.145 | U154: 0
B155: 0.146 | C155: 0 | D155: 0 | T155: 0.146 | U155: 0
B156: 0.147 | C156: 0 | D156: 0 | T156: 0.147 | U156: 0
B157: 0.148 | C157: 0 | D157: 0 | T157: 0.148 | U157: 0
B158: 0.149 | C158: 0 | D158: 0 | T158: 0.149 | U158: 0
B159: 0.15 | C159: 0 | D159: 0 | T159: 0.15 | U159: 0
B160: 0.151 | C160: 0 | D160: 0 | T160: 0.151 | U160: 0
B161: 0.152 | C161: 0 | D161: 0 | T161: 0.152 | U161: 0
B162: 0.153 | C162: 0 | D162: 0 | T162: 0.153 | U162: 0
B163: 0.154 | C163: 0 | D163: 0 | T163: 0.154 | U163: 0
B164: 0.155 | C164: 0 | D164: 0 | T164: 0.155 | U164: 0
B165: 0.156 | C165: 0 | D165: 0 | T165: 0.156 | U165: 0
B166: 0.157 | C166: 0 | D166: 0 | T166: 0.157 | U166: 0
B167: 0.158 | C167: 0 | D167: 0 | T167: 0.158 | U167: 0
B168: 0.159 | C168: 0 | D168: 0 | T168: 0.159 | U168: 0
B169: 0.16 | C169: 0 | D169: 0 | T169: 0.16 | U169: 0
B170: 0.161 | C170: 0 | D170: 0 | T170: 0.161 | U170: 0
B171: 0.162 | C171: 0 | D171: 0 | T171: 0.162 | U171: 0
B172: 0.163 | C172: 0 | D172: 0 | T172: 0.163 | U172: 0
B173: 0.164 | C173: 0 | D173: 0 | T173: 0.164 | U173: 0
B174: 0.165 | C174: 0 | D174: 0 | T174: 0.165 | U174: 0
B175: 0.166 | C175: 0 | D175: 0 | T175: 0.166 | U175: 0
B176: 0.167 | C176: 0 | D176: 0 | T176: 0.167 | U176: 0
B177: 0.168 | C177: 0 | D177: 0 | T177: 0.168 | U177: 0
B178: 0.169 | C178: 0 | D178: 0 | T178: 0.169 | U178: 0
B179: 0.17 | C179: 0 | D179: 0 | T179: 0.17 | U179: 0
B180: 0.171 | C180: 0 | D180: 0 | T180: 0.171 | U180: 0
B181: 0.172 | C181: 0 | D181: 0 | T181: 0.172 | U181: 0
B182: 0.173 | C182: 0 | D182: 0 | T182: 0.173 | U182: 0
B183: 0.174 | C183: 0 | D183: 0 | T183: 0.174 | U183: 0
B184: 0.175 | C184: 0 | D184: 0 | T184: 0.175 | U184: 0
B185: 0.176 | C185: 0 | D185: 0 | T185: 0.176 | U185: 0
B186: 0.177 | C186: 0 | D186: 0 | T186: 0.177 | U186: 0
B187: 0.178 | C187: 0 | D187: 0 | T187: 0.178 | U187: 0
B188: 0.179 | C188: 0 | D188: 0 | T188: 0.179 | U188: 0
B189: 0.18 | C189: 0 | D189: 0 | T189: 0.18 | U189: 0
B190: 0.181 | C190: 0 | D190: 0 | T190: 0.181 | U190: 0
B191: 0.182 | C191: 0 | D191: 0 | T191: 0.182 | U191: 0
B192: 0.183 | C192: 0 | D192: 0 | T192: 0.183 | U192: 0
B193: 0.184 | C193: 0 | D193: 0 | T193: 0.184 | U193: 0
B194: 0.185 | C194: 0 | D194: 0 | T194: 0.185 | U194: 0
B195: 0.186 | C195: 0 | D195: 0 | T195: 0.186 | U195: 0
B196: 0.187 | C196: 0 | D196: 0 | T196: 0.187 | U196: 0
B197: 0.188 | C197: 0 | D197: 0 | T197: 0.188 | U197: 0
B198: 0.189 | C198: 0 | D198: 0 | T198: 0.189 | U198: 0
B199: 0.19 | C199: 0 | D199: 0 | T199: 0.19 | U199: 0
B200: 0.191 | C200: 0 | D200: 0 | T200: 0.191 | U200: 0
B201: 0.192 | C201: 0 | D201: 0 | T201: 0.192 | U201: 0
B202: 0.193 | C202: 0 | D202: 0 | T202: 0.193 | U202: 0 | V202: =D202/$D$3 -> 
... 4298 more rows

Sheet GovernorResponseFunction-1 (hidden)
C4: Vi (v) | D4: Vf (v) | E4: R (ohms) | F4: L (H) | G4: C (Farads) | I4: Alfa | J4: 1/alfa
C5: 0 | D5: 1 | E5: 150 | F5: 0.008 | G5: 6e-08 | I5: 1.1 | J5: 1.666666667
B8: Time | C8: Vc
B9: 0 | C9: 0
B10: 0.001 | C10: 6.045565162e-07
B11: 0.002 | C11: 2.416453593e-06
B12: 0.003 | C12: 5.433035811e-06
B13: 0.004 | C13: 9.65165213e-06
B14: 0.005 | C14: 1.506965588e-05
B15: 0.006 | C15: 2.168440477e-05
B16: 0.007 | C16: 2.949326085e-05
B17: 0.008 | C17: 3.849359053e-05
B18: 0.009 | C18: 4.868276458e-05
B19: 0.01 | C19: 6.00581581e-05
B20: 0.011 | C20: 7.261715053e-05
B21: 0.012 | C21: 8.635712563e-05
B22: 0.013 | C22: 0.0001012754715
B23: 0.014 | C23: 0.0001173695805
B24: 0.015 | C24: 0.0001346368494
B25: 0.016 | C25: 0.0001530746792
B26: 0.017 | C26: 0.0001726804751
B27: 0.018 | C27: 0.0001934516469
B28: 0.019 | C28: 0.0002153856084
B29: 0.02 | C29: 0.0002384797777
B30: 0.021 | C30: 0.0002627315773
B31: 0.022 | C31: 0.0002881384338
B32: 0.023 | C32: 0.0003146977784
B33: 0.024 | C33: 0.000342407046
B34: 0.025 | C34: 0.0003712636763
B35: 0.026 | C35: 0.0004012651129
B36: 0.027 | C36: 0.0004324088038
B37: 0.028 | C37: 0.000464692201
B38: 0.029 | C38: 0.0004981127611
B39: 0.03 | C39: 0.0005326679445
B40: 0.031 | C40: 0.0005683552162
B41: 0.032 | C41: 0.000605172045
B42: 0.033 | C42: 0.0006431159042
B43: 0.034 | C43: 0.0006821842713
B44: 0.035 | C44: 0.0007223746277
B45: 0.036 | C45: 0.0007636844593
B46: 0.037 | C46: 0.0008061112559
B47: 0.038 | C47: 0.0008496525118
B48: 0.039 | C48: 0.000894305725
B49: 0.04 | C49: 0.0009400683981
B50: 0.041 | C50: 0.0009869380377
B51: 0.042 | C51: 0.001034912154
B52: 0.043 | C52: 0.001083988263
B53: 0.044 | C53: 0.001134163882
B54: 0.045 | C54: 0.001185436536
B55: 0.046 | C55: 0.00123780375
B56: 0.047 | C56: 0.001291263058
B57: 0.048 | C57: 0.001345811993
B58: 0.049 | C58: 0.001401448095
B59: 0.05 | C59: 0.001458168909
B60: 0.051 | C60: 0.001515971982
B61: 0.052 | C61: 0.001574854865
B62: 0.053 | C62: 0.001634815114
B63: 0.054 | C63: 0.00169585029
B64: 0.055 | C64: 0.001757957956
B65: 0.056 | C65: 0.001821135681
B66: 0.057 | C66: 0.001885381036
B67: 0.058 | C67: 0.001950691597
B68: 0.059 | C68: 0.002017064946
B69: 0.06 | C69: 0.002084498665
B70: 0.061 | C70: 0.002152990344
B71: 0.062 | C71: 0.002222537574
B72: 0.063 | C72: 0.002293137952
B73: 0.064 | C73: 0.002364789079
B74: 0.065 | C74: 0.002437488557
B75: 0.066 | C75: 0.002511233996
B76: 0.067 | C76: 0.002586023009
B77: 0.068 | C77: 0.00266185321
B78: 0.069 | C78: 0.002738722221
B79: 0.07 | C79: 0.002816627666
B80: 0.071 | C80: 0.002895567172
B81: 0.072 | C81: 0.002975538373
B82: 0.073 | C82: 0.003056538904
B83: 0.074 | C83: 0.003138566405
B84: 0.075 | C84: 0.00322161852
B85: 0.076 | C85: 0.003305692897
B86: 0.077 | C86: 0.003390787189
B87: 0.078 | C87: 0.00347689905
B88: 0.079 | C88: 0.003564026141
B89: 0.08 | C89: 0.003652166125
B90: 0.081 | C90: 0.00374131667
B91: 0.082 | C91: 0.003831475447
B92: 0.083 | C92: 0.003922640132
B93: 0.084 | C93: 0.004014808403
B94: 0.085 | C94: 0.004107977944
B95: 0.086 | C95: 0.004202146443
B96: 0.087 | C96: 0.004297311589
B97: 0.088 | C97: 0.004393471078
B98: 0.089 | C98: 0.004490622608
B99: 0.09 | C99: 0.004588763882
B100: 0.091 | C100: 0.004687892606
B101: 0.092 | C101: 0.00478800649
B102: 0.093 | C102: 0.004889103249
B103: 0.094 | C103: 0.0049911806
B104: 0.095 | C104: 0.005094236264
B105: 0.096 | C105: 0.005198267968
B106: 0.097 | C106: 0.005303273441
B107: 0.098 | C107: 0.005409250415
B108: 0.099 | C108: 0.005516196628
B109: 0.1 | C109: 0.005624109821
B110: 0.101 | C110: 0.005732987738
B111: 0.102 | C111: 0.005842828127
B112: 0.103 | C112: 0.005953628741
B113: 0.104 | C113: 0.006065387335
B114: 0.105 | C114: 0.00617810167
B115: 0.106 | C115: 0.006291769508
B116: 0.107 | C116: 0.006406388616
B117: 0.108 | C117: 0.006521956767
B118: 0.109 | C118: 0.006638471734
B119: 0.11 | C119: 0.006755931296
B120: 0.111 | C120: 0.006874333236
B121: 0.112 | C121: 0.006993675338
B122: 0.113 | C122: 0.007113955393
B123: 0.114 | C123: 0.007235171195
B124: 0.115 | C124: 0.007357320539
B125: 0.116 | C125: 0.007480401228
B126: 0.117 | C126: 0.007604411065
B127: 0.118 | C127: 0.00772934786
B128: 0.119 | C128: 0.007855209423
B129: 0.12 | C129: 0.00798199357
B130: 0.121 | C130: 0.008109698121
B131: 0.122 | C131: 0.008238320899
B132: 0.123 | C132: 0.008367859731
B133: 0.124 | C133: 0.008498312446
B134: 0.125 | C134: 0.008629676878
B135: 0.126 | C135: 0.008761950866
B136: 0.127 | C136: 0.008895132251
B137: 0.128 | C137: 0.009029218877
B138: 0.129 | C138: 0.009164208594
B139: 0.13 | C139: 0.009300099252
B140: 0.131 | C140: 0.00943688871
B141: 0.132 | C141: 0.009574574824
B142: 0.133 | C142: 0.00971315546
B143: 0.134 | C143: 0.009852628483
B144: 0.135 | C144: 0.009992991765
B145: 0.136 | C145: 0.01013424318
B146: 0.137 | C146: 0.0102763806
B147: 0.138 | C147: 0.01041940191
B148: 0.139 | C148: 0.010563305
B149: 0.14 | C149: 0.01070808775
B150: 0.141 | C150: 0.01085374806
B151: 0.142 | C151: 0.01100028382
B152: 0.143 | C152: 0.01114769293
B153: 0.144 | C153: 0.01129597329
B154: 0.145 | C154: 0.0114451228
B155: 0.146 | C155: 0.01159513939
B156: 0.147 | C156: 0.01174602096
B157: 0.148 | C157: 0.01189776543
B158: 0.149 | C158: 0.01205037071
B159: 0.15 | C159: 0.01220383474
B160: 0.151 | C160: 0.01235815543
B161: 0.152 | C161: 0.01251333073
B162: 0.153 | C162: 0.01266935856
B163: 0.154 | C163: 0.01282623687
B164: 0.155 | C164: 0.01298396359
B165: 0.156 | C165: 0.01314253667
B166: 0.157 | C166: 0.01330195405
B167: 0.158 | C167: 0.0134622137
B168: 0.159 | C168: 0.01362331356
B169: 0.16 | C169: 0.0137852516
B170: 0.161 | C170: 0.01394802577
B171: 0.162 | C171: 0.01411163404
B172: 0.163 | C172: 0.01427607438
B173: 0.164 | C173: 0.01444134477
B174: 0.165 | C174: 0.01460744317
B175: 0.166 | C175: 0.01477436758
B176: 0.167 | C176: 0.01494211597
B177: 0.168 | C177: 0.01511068633
B178: 0.169 | C178: 0.01528007664
B179: 0.17 | C179: 0.01545028491
B180: 0.171 | C180: 0.01562130913
B181: 0.172 | C181: 0.01579314729
B182: 0.173 | C182: 0.01596579741
B183: 0.174 | C183: 0.01613925749
B184: 0.175 | C184: 0.01631352554
B185: 0.176 | C185: 0.01648859958
B186: 0.177 | C186: 0.01666447761
B187: 0.178 | C187: 0.01684115767
B188: 0.179 | C188: 0.01701863777
B189: 0.18 | C189: 0.01719691594
B190: 0.181 | C190: 0.01737599022
B191: 0.182 | C191: 0.01755585863
B192: 0.183 | C192: 0.01773651922
B193: 0.184 | C193: 0.01791797003
B194: 0.185 | C194: 0.0181002091
B195: 0.186 | C195: 0.01828323447
B196: 0.187 | C196: 0.0184670442
B197: 0.188 | C197: 0.01865163635
B198: 0.189 | C198: 0.01883700896
B199: 0.19 | C199: 0.01902316011
B200: 0.191 | C200: 0.01921008785
B201: 0.192 | C201: 0.01939779025
B202: 0.193 | C202: 0.01958626538
B203: 0.194 | C203: 0.01977551133
B204: 0.195 | C204: 0.01996552615
B205: 0.196 | C205: 0.02015630794
... 9803 more rows

Sheet Governor & SelfReg Response
C7: Governor response | E7: Self Regulation Response | S7: Governor response
B8: Time | C8: Base case, governor response | D8: What If, governor response | E8: Base case, self regulation response | F8: What If, self regulation response | R8: Time | S8: Base case | T8: What If
B9: 0 | C9: 0 | D9: 0 | E9: 0 | F9: 0 | R9: =B9 -> 0 | S9: =C9 -> 0 | T9: =D9 -> 0
B10: 0.001 | C10: 0 | D10: 0 | E10: 0.9858439794 | F10: 2.119063942 | R10: =B10 -> 0.001 | S10: =C10 -> 0 | T10: =D10 -> 0
B11: 0.002 | C11: 0 | D11: 0 | E11: 1.971283005 | F11: 4.236256871 | R11: 0.002 | S11: 0 | T11: 0
B12: 0.003 | C12: 0 | D12: 0 | E12: 2.956317244 | F12: 6.351580439 | R12: 0.003 | S12: 0 | T12: 0
B13: 0.004 | C13: 0 | D13: 0 | E13: 3.940946862 | F13: 8.465036296 | R13: 0.004 | S13: 0 | T13: 0
B14: 0.005 | C14: 0 | D14: 0 | E14: 4.925172025 | F14: 10.57662609 | R14: 0.005 | S14: 0 | T14: 0
B15: 0.006 | C15: 0 | D15: 0 | E15: 5.9089929 | F15: 12.68635147 | R15: 0.006 | S15: 0 | T15: 0
B16: 0.007 | C16: 0 | D16: 0 | E16: 6.892409652 | F16: 14.79421409 | R16: 0.007 | S16: 0 | T16: 0
B17: 0.008 | C17: 0 | D17: 0 | E17: 7.875422448 | F17: 16.90021558 | R17: 0.008 | S17: 0 | T17: 0
B18: 0.009 | C18: 0 | D18: 0 | E18: 8.858031454 | F18: 19.00435759 | R18: 0.009 | S18: 0 | T18: 0
B19: 0.01 | C19: 0 | D19: 0 | E19: 9.840236834 | F19: 21.10664176 | R19: 0.01 | S19: 0 | T19: 0
B20: 0.011 | C20: 0 | D20: 0 | E20: 10.82203876 | F20: 23.20706973 | R20: 0.011 | S20: 0 | T20: 0
B21: 0.012 | C21: 0 | D21: 0 | E21: 11.80343738 | F21: 25.30564315 | R21: 0.012 | S21: 0 | T21: 0
B22: 0.013 | C22: 0 | D22: 0 | E22: 12.78443289 | F22: 27.40236364 | R22: 0.013 | S22: 0 | T22: 0
B23: 0.014 | C23: 0 | D23: 0 | E23: 13.76502543 | F23: 29.49723285 | R23: 0.014 | S23: 0 | T23: 0
B24: 0.015 | C24: 0 | D24: 0 | E24: 14.74521517 | F24: 31.59025241 | R24: 0.015 | S24: 0 | T24: 0
B25: 0.016 | C25: 0 | D25: 0 | E25: 15.72500228 | F25: 33.68142395 | R25: 0.016 | S25: 0 | T25: 0
B26: 0.017 | C26: 0 | D26: 0 | E26: 16.70438693 | F26: 35.7707491 | R26: 0.017 | S26: 0 | T26: 0
B27: 0.018 | C27: 0 | D27: 0 | E27: 17.68336927 | F27: 37.8582295 | R27: 0.018 | S27: 0 | T27: 0
B28: 0.019 | C28: 0 | D28: 0 | E28: 18.66194948 | F28: 39.94386677 | R28: 0.019 | S28: 0 | T28: 0
B29: 0.02 | C29: 0 | D29: 0 | E29: 19.64012773 | F29: 42.02766254 | R29: 0.02 | S29: 0 | T29: 0
B30: 0.021 | C30: 0 | D30: 0 | E30: 20.61790416 | F30: 44.10961844 | R30: 0.021 | S30: 0 | T30: 0
B31: 0.022 | C31: 0 | D31: 0 | E31: 21.59527896 | F31: 46.18973609 | R31: 0.022 | S31: 0 | T31: 0
B32: 0.023 | C32: 0 | D32: 0 | E32: 22.57225228 | F32: 48.26801712 | R32: 0.023 | S32: 0 | T32: 0
B33: 0.024 | C33: 0 | D33: 0 | E33: 23.5488243 | F33: 50.34446314 | R33: 0.024 | S33: 0 | T33: 0
B34: 0.025 | C34: 0 | D34: 0 | E34: 24.52499517 | F34: 52.41907577 | R34: 0.025 | S34: 0 | T34: 0
B35: 0.026 | C35: 0 | D35: 0 | E35: 25.50076505 | F35: 54.49185664 | R35: 0.026 | S35: 0 | T35: 0
B36: 0.027 | C36: 0 | D36: 0 | E36: 26.47613413 | F36: 56.56280736 | R36: 0.027 | S36: 0 | T36: 0
B37: 0.028 | C37: 0 | D37: 0 | E37: 27.45110255 | F37: 58.63192955 | R37: 0.028 | S37: 0 | T37: 0
B38: 0.029 | C38: 0 | D38: 0 | E38: 28.42567048 | F38: 60.69922483 | R38: 0.029 | S38: 0 | T38: 0
B39: 0.03 | C39: 0 | D39: 0 | E39: 29.3998381 | F39: 62.76469479 | R39: 0.03 | S39: 0 | T39: 0
B40: 0.031 | C40: 0 | D40: 0 | E40: 30.37360556 | F40: 64.82834107 | R40: 0.031 | S40: 0 | T40: 0
B41: 0.032 | C41: 0 | D41: 0 | E41: 31.34697302 | F41: 66.89016526 | R41: 0.032 | S41: 0 | T41: 0
B42: 0.033 | C42: 0 | D42: 0 | E42: 32.31994066 | F42: 68.95016898 | R42: 0.033 | S42: 0 | T42: 0
B43: 0.034 | C43: 0 | D43: 0 | E43: 33.29250863 | F43: 71.00835383 | R43: 0.034 | S43: 0 | T43: 0
B44: 0.035 | C44: 0 | D44: 0 | E44: 34.2646771 | F44: 73.06472142 | R44: 0.035 | S44: 0 | T44: 0
B45: 0.036 | C45: 0 | D45: 0 | E45: 35.23644623 | F45: 75.11927336 | R45: 0.036 | S45: 0 | T45: 0
B46: 0.037 | C46: 0 | D46: 0 | E46: 36.2078162 | F46: 77.17201124 | R46: 0.037 | S46: 0 | T46: 0
B47: 0.038 | C47: 0 | D47: 0 | E47: 37.17878715 | F47: 79.22293667 | R47: 0.038 | S47: 0 | T47: 0
B48: 0.039 | C48: 0 | D48: 0 | E48: 38.14935927 | F48: 81.27205125 | R48: 0.039 | S48: 0 | T48: 0
B49: 0.04 | C49: 0 | D49: 0 | E49: 39.1195327 | F49: 83.31935658 | R49: 0.04 | S49: 0 | T49: 0
B50: 0.041 | C50: 0 | D50: 0 | E50: 40.08930761 | F50: 85.36485426 | R50: 0.041 | S50: 0 | T50: 0
B51: 0.042 | C51: 0 | D51: 0 | E51: 41.05868417 | F51: 87.40854587 | R51: 0.042 | S51: 0 | T51: 0
B52: 0.043 | C52: 0 | D52: 0 | E52: 42.02766254 | F52: 89.45043302 | R52: 0.043 | S52: 0 | T52: 0
B53: 0.044 | C53: 0 | D53: 0 | E53: 42.99624289 | F53: 91.4905173 | R53: 0.044 | S53: 0 | T53: 0
B54: 0.045 | C54: 0 | D54: 0 | E54: 43.96442538 | F54: 93.52880031 | R54: 0.045 | S54: 0 | T54: 0
B55: 0.046 | C55: 0 | D55: 0 | E55: 44.93221016 | F55: 95.56528362 | R55: 0.046 | S55: 0 | T55: 0
B56: 0.047 | C56: 0 | D56: 0 | E56: 45.89959741 | F56: 97.59996883 | R56: 0.047 | S56: 0 | T56: 0
B57: 0.048 | C57: 0 | D57: 0 | E57: 46.86658729 | F57: 99.63285754 | R57: 0.048 | S57: 0 | T57: 0
B58: 0.049 | C58: 0 | D58: 0 | E58: 47.83317996 | F58: 101.6639513 | R58: 0.049 | S58: 0 | T58: 0
B59: 0.05 | C59: 0 | D59: 0 | E59: 48.79937559 | F59: 103.6932518 | R59: 0.05 | S59: 0 | T59: 0
B60: 0.051 | C60: 0 | D60: 0 | E60: 49.76517433 | F60: 105.7207604 | R60: 0.051 | S60: 0 | T60: 0
B61: 0.052 | C61: 0 | D61: 0 | E61: 50.73057635 | F61: 107.7464789 | R61: 0.052 | S61: 0 | T61: 0
B62: 0.053 | C62: 0 | D62: 0 | E62: 51.69558182 | F62: 109.7704088 | R62: 0.053 | S62: 0 | T62: 0
B63: 0.054 | C63: 0 | D63: 0 | E63: 52.66019089 | F63: 111.7925517 | R63: 0.054 | S63: 0 | T63: 0
B64: 0.055 | C64: 0 | D64: 0 | E64: 53.62440373 | F64: 113.8129092 | R64: 0.055 | S64: 0 | T64: 0
B65: 0.056 | C65: 0 | D65: 0 | E65: 54.5882205 | F65: 115.8314828 | R65: 0.056 | S65: 0 | T65: 0
B66: 0.057 | C66: 0 | D66: 0 | E66: 55.55164137 | F66: 117.8482741 | R66: 0.057 | S66: 0 | T66: 0
B67: 0.058 | C67: 0 | D67: 0 | E67: 56.51466649 | F67: 119.8632847 | R67: 0.058 | S67: 0 | T67: 0
B68: 0.059 | C68: 0 | D68: 0 | E68: 57.47729604 | F68: 121.8765162 | R68: 0.059 | S68: 0 | T68: 0
B69: 0.06 | C69: 0 | D69: 0 | E69: 58.43953016 | F69: 123.88797 | R69: 0.06 | S69: 0 | T69: 0
B70: 0.061 | C70: 0 | D70: 0 | E70: 59.40136904 | F70: 125.8976479 | R70: 0.061 | S70: 0 | T70: 0
B71: 0.062 | C71: 0 | D71: 0 | E71: 60.36281282 | F71: 127.9055514 | R71: 0.062 | S71: 0 | T71: 0
B72: 0.063 | C72: 0 | D72: 0 | E72: 61.32386166 | F72: 129.911682 | R72: 0.063 | S72: 0 | T72: 0
B73: 0.064 | C73: 0 | D73: 0 | E73: 62.28451574 | F73: 131.9160413 | R73: 0.064 | S73: 0 | T73: 0
B74: 0.065 | C74: 0 | D74: 0 | E74: 63.24477522 | F74: 133.9186308 | R74: =B74 -> 0.065 | S74: =C74 -> 0 | T74: =D74 -> 0
B75: 0.066 | C75: 0 | D75: 0 | E75: 64.20464024 | F75: 135.9194522 | R75: 0.066 | S75: 0 | T75: 0
B76: 0.067 | C76: 0 | D76: 0 | E76: 65.16411099 | F76: 137.918507 | R76: 0.067 | S76: 0 | T76: 0
B77: 0.068 | C77: 0 | D77: 0 | E77: 66.12318762 | F77: 139.9157967 | R77: 0.068 | S77: 0 | T77: 0
B78: 0.069 | C78: 0 | D78: 0 | E78: 67.08187029 | F78: 141.9113229 | R78: 0.069 | S78: 0 | T78: 0
B79: 0.07 | C79: 0 | D79: 0 | E79: 68.04015916 | F79: 143.9050872 | R79: 0.07 | S79: 0 | T79: 0
B80: 0.071 | C80: 0 | D80: 0 | E80: 68.9980544 | F80: 145.8970911 | R80: 0.071 | S80: 0 | T80: 0
B81: 0.072 | C81: 0 | D81: 0 | E81: 69.95555616 | F81: 147.8873362 | R81: 0.072 | S81: 0 | T81: 0
B82: 0.073 | C82: 0 | D82: 0 | E82: 70.91266461 | F82: 149.875824 | R82: 0.073 | S82: 0 | T82: 0
B83: 0.074 | C83: 0 | D83: 0 | E83: 71.86937992 | F83: 151.8625561 | R83: 0.074 | S83: 0 | T83: 0
B84: 0.075 | C84: 0 | D84: 0 | E84: 72.82570223 | F84: 153.847534 | R84: 0.075 | S84: 0 | T84: 0
B85: 0.076 | C85: 0 | D85: 0 | E85: 73.78163172 | F85: 155.8307593 | R85: 0.076 | S85: 0 | T85: 0
B86: 0.077 | C86: 0 | D86: 0 | E86: 74.73716854 | F86: 157.8122335 | R86: 0.077 | S86: 0 | T86: 0
B87: 0.078 | C87: 0 | D87: 0 | E87: 75.69231286 | F87: 159.7919582 | R87: 0.078 | S87: 0 | T87: 0
B88: 0.079 | C88: 0 | D88: 0 | E88: 76.64706483 | F88: 161.7699349 | R88: 0.079 | S88: 0 | T88: 0
B89: 0.08 | C89: 0 | D89: 0 | E89: 77.60142463 | F89: 163.7461652 | R89: 0.08 | S89: 0 | T89: 0
B90: 0.081 | C90: 0 | D90: 0 | E90: 78.5553924 | F90: 165.7206505 | R90: 0.081 | S90: 0 | T90: 0
B91: 0.082 | C91: 0 | D91: 0 | E91: 79.50896831 | F91: 167.6933925 | R91: 0.082 | S91: 0 | T91: 0
B92: 0.083 | C92: 0 | D92: 0 | E92: 80.46215252 | F92: 169.6643927 | R92: 0.083 | S92: 0 | T92: 0
B93: 0.084 | C93: 0 | D93: 0 | E93: 81.4149452 | F93: 171.6336526 | R93: 0.084 | S93: 0 | T93: 0
B94: 0.085 | C94: 0 | D94: 0 | E94: 82.3673465 | F94: 173.6011738 | R94: 0.085 | S94: 0 | T94: 0
B95: 0.086 | C95: 0 | D95: 0 | E95: 83.31935658 | F95: 175.5669577 | R95: 0.086 | S95: 0 | T95: 0
B96: 0.087 | C96: 0 | D96: 0 | E96: 84.27097561 | F96: 177.531006 | R96: 0.087 | S96: 0 | T96: 0
B97: 0.088 | C97: 0 | D97: 0 | E97: 85.22220374 | F97: 179.4933201 | R97: 0.088 | S97: 0 | T97: 0
B98: 0.089 | C98: 0 | D98: 0 | E98: 86.17304114 | F98: 181.4539016 | R98: 0.089 | S98: 0 | T98: 0
B99: 0.09 | C99: 0 | D99: 0 | E99: 87.12348796 | F99: 183.4127521 | R99: 0.09 | S99: 0 | T99: 0
B100: 0.091 | C100: 0 | D100: 0 | E100: 88.07354437 | F100: 185.369873 | R100: 0.091 | S100: 0 | T100: 0
B101: 0.092 | C101: 0 | D101: 0 | E101: 89.02321053 | F101: 187.3252658 | R101: 0.092 | S101: 0 | T101: 0
B102: 0.093 | C102: 0 | D102: 0 | E102: 89.97248659 | F102: 189.2789322 | R102: 0.093 | S102: 0 | T102: 0
B103: 0.094 | C103: 0 | D103: 0 | E103: 90.92137273 | F103: 191.2308735 | R103: 0.094 | S103: 0 | T103: 0
B104: 0.095 | C104: 0 | D104: 0 | E104: 91.86986908 | F104: 193.1810915 | R104: 0.095 | S104: 0 | T104: 0
B105: 0.096 | C105: 0 | D105: 0 | E105: 92.81797583 | F105: 195.1295874 | R105: 0.096 | S105: 0 | T105: 0
B106: 0.097 | C106: 0 | D106: 0 | E106: 93.76569313 | F106: 197.076363 | R106: 0.097 | S106: 0 | T106: 0
B107: 0.098 | C107: 0 | D107: 0 | E107: 94.71302113 | F107: 199.0214197 | R107: 0.098 | S107: 0 | T107: 0
B108: 0.099 | C108: 0 | D108: 0 | E108: 95.65996 | F108: 200.964759 | R108: 0.099 | S108: 0 | T108: 0
B109: 0.1 | C109: 0 | D109: 0 | E109: 96.6065099 | F109: 202.9063825 | R109: 0.1 | S109: 0 | T109: 0
B110: 0.101 | C110: 0 | D110: 0 | E110: 97.55267098 | F110: 204.8462916 | R110: 0.101 | S110: 0 | T110: 0
B111: 0.102 | C111: 0 | D111: 0 | E111: 98.49844342 | F111: 206.7844879 | R111: 0.102 | S111: 0 | T111: 0
B112: 0.103 | C112: 0 | D112: 0 | E112: 99.44382735 | F112: 208.7209728 | R112: 0.103 | S112: 0 | T112: 0
B113: 0.104 | C113: 0 | D113: 0 | E113: 100.388823 | F113: 210.655748 | R113: 0.104 | S113: 0 | T113: 0
B114: 0.105 | C114: 0 | D114: 0 | E114: 101.3334304 | F114: 212.5888148 | R114: 0.105 | S114: 0 | T114: 0
B115: 0.106 | C115: 0 | D115: 0 | E115: 102.2776498 | F115: 214.5201749 | R115: 0.106 | S115: 0 | T115: 0
B116: 0.107 | C116: 0 | D116: 0 | E116: 103.2214814 | F116: 216.4498297 | R116: 0.107 | S116: 0 | T116: 0
B117: 0.108 | C117: 0 | D117: 0 | E117: 104.1649252 | F117: 218.3777807 | R117: 0.108 | S117: 0 | T117: 0
B118: 0.109 | C118: 0 | D118: 0 | E118: 105.1079816 | F118: 220.3040295 | R118: 0.109 | S118: 0 | T118: 0
B119: 0.11 | C119: 0 | D119: 0 | E119: 106.0506505 | F119: 222.2285774 | R119: 0.11 | S119: 0 | T119: 0
B120: 0.111 | C120: 0 | D120: 0 | E120: 106.9929322 | F120: 224.1514261 | R120: 0.111 | S120: 0 | T120: 0
B121: 0.112 | C121: 0 | D121: 0 | E121: 107.9348269 | F121: 226.0725771 | R121: 0.112 | S121: 0 | T121: 0
B122: 0.113 | C122: 0 | D122: 0 | E122: 108.8763347 | F122: 227.9920318 | R122: 0.113 | S122: 0 | T122: 0
B123: 0.114 | C123: 0 | D123: 0 | E123: 109.8174557 | F123: 229.9097917 | R123: 0.114 | S123: 0 | T123: 0
B124: 0.115 | C124: 0 | D124: 0 | E124: 110.7581902 | F124: 231.8258583 | R124: 0.115 | S124: 0 | T124: 0
B125: 0.116 | C125: 0 | D125: 0 | E125: 111.6985382 | F125: 233.7402331 | R125: 0.116 | S125: 0 | T125: 0
B126: 0.117 | C126: 0 | D126: 0 | E126: 112.6384999 | F126: 235.6529177 | R126: 0.117 | S126: 0 | T126: 0
B127: 0.118 | C127: 0 | D127: 0 | E127: 113.5780756 | F127: 237.5639135 | R127: 0.118 | S127: 0 | T127: 0
B128: 0.119 | C128: 0 | D128: 0 | E128: 114.5172653 | F128: 239.473222 | R128: 0.119 | S128: 0 | T128: 0
B129: 0.12 | C129: 0 | D129: 0 | E129: 115.4560692 | F129: 241.3808446 | R129: 0.12 | S129: 0 | T129: 0
B130: 0.121 | C130: 0 | D130: 0 | E130: 116.3944875 | F130: 243.286783 | R130: 0.121 | S130: 0 | T130: 0
B131: 0.122 | C131: 0 | D131: 0 | E131: 117.3325203 | F131: 245.1910385 | R131: 0.122 | S131: 0 | T131: 0
B132: 0.123 | C132: 0 | D132: 0 | E132: 118.2701678 | F132: 247.0936126 | R132: 0.123 | S132: 0 | T132: 0
B133: 0.124 | C133: 0 | D133: 0 | E133: 119.2074301 | F133: 248.9945069 | R133: 0.124 | S133: 0 | T133: 0
B134: 0.125 | C134: 0 | D134: 0 | E134: 120.1443075 | F134: 250.8937228 | R134: 0.125 | S134: 0 | T134: 0
B135: 0.126 | C135: 0 | D135: 0 | E135: 121.0808 | F135: 252.7912618 | R135: 0.126 | S135: 0 | T135: 0
B136: 0.127 | C136: 0 | D136: 0 | E136: 122.0169078 | F136: 254.6871254 | R136: 0.127 | S136: 0 | T136: 0
B137: 0.128 | C137: 0 | D137: 0 | E137: 122.9526311 | F137: 256.5813151 | R137: 0.128 | S137: 0 | T137: 0
B138: 0.129 | C138: 0 | D138: 0 | E138: 123.88797 | F138: 258.4738323 | R138: =B138 -> 0.129 | S138: =C138 -> 0 | T138: =D138 -> 0
B139: 0.13 | C139: 0 | D139: 0 | E139: 124.8229248 | F139: 260.3646785 | R139: 0.13 | S139: 0 | T139: 0
B140: 0.131 | C140: 0 | D140: 0 | E140: 125.7574954 | F140: 262.2538551 | R140: 0.131 | S140: 0 | T140: 0
B141: 0.132 | C141: 0 | D141: 0 | E141: 126.6916822 | F141: 264.1413638 | R141: 0.132 | S141: 0 | T141: 0
B142: 0.133 | C142: 0 | D142: 0 | E142: 127.6254853 | F142: 266.0272059 | R142: 0.133 | S142: 0 | T142: 0
B143: 0.134 | C143: 0 | D143: 0 | E143: 128.5589047 | F143: 267.9113829 | R143: 0.134 | S143: 0 | T143: 0
B144: 0.135 | C144: 0 | D144: 0 | E144: 129.4919408 | F144: 269.7938963 | R144: 0.135 | S144: 0 | T144: 0
B145: 0.136 | C145: 0 | D145: 0 | E145: 130.4245936 | F145: 271.6747475 | R145: 0.136 | S145: 0 | T145: 0
B146: 0.137 | C146: 0 | D146: 0 | E146: 131.3568633 | F146: 273.553938 | R146: 0.137 | S146: 0 | T146: 0
B147: 0.138 | C147: 0 | D147: 0 | E147: 132.28875 | F147: 275.4314694 | R147: 0.138 | S147: 0 | T147: 0
B148: 0.139 | C148: 0 | D148: 0 | E148: 133.220254 | F148: 277.3073429 | R148: 0.139 | S148: 0 | T148: 0
B149: 0.14 | C149: 0 | D149: 0 | E149: 134.1513753 | F149: 279.1815602 | R149: 0.14 | S149: 0 | T149: 0
B150: 0.141 | C150: 0 | D150: 0 | E150: 135.0821141 | F150: 281.0541227 | R150: 0.141 | S150: 0 | T150: 0
B151: 0.142 | C151: 0 | D151: 0 | E151: 136.0124707 | F151: 282.9250317 | R151: 0.142 | S151: 0 | T151: 0
B152: 0.143 | C152: 0 | D152: 0 | E152: 136.942445 | F152: 284.7942889 | R152: 0.143 | S152: 0 | T152: 0
B153: 0.144 | C153: 0 | D153: 0 | E153: 137.8720374 | F153: 286.6618957 | R153: 0.144 | S153: 0 | T153: 0
B154: 0.145 | C154: 0 | D154: 0 | E154: 138.8012479 | F154: 288.5278534 | R154: 0.145 | S154: 0 | T154: 0
B155: 0.146 | C155: 0 | D155: 0 | E155: 139.7300767 | F155: 290.3921636 | R155: 0.146 | S155: 0 | T155: 0
B156: 0.147 | C156: 0 | D156: 0 | E156: 140.658524 | F156: 292.2548277 | R156: 0.147 | S156: 0 | T156: 0
B157: 0.148 | C157: 0 | D157: 0 | E157: 141.5865899 | F157: 294.1158472 | R157: 0.148 | S157: 0 | T157: 0
B158: 0.149 | C158: 0 | D158: 0 | E158: 142.5142746 | F158: 295.9752235 | R158: 0.149 | S158: 0 | T158: 0
B159: 0.15 | C159: 0 | D159: 0 | E159: 143.4415783 | F159: 297.8329581 | R159: 0.15 | S159: 0 | T159: 0
B160: 0.151 | C160: 0 | D160: 0 | E160: 144.368501 | F160: 299.6890525 | R160: 0.151 | S160: 0 | T160: 0
B161: 0.152 | C161: 0 | D161: 0 | E161: 145.2950429 | F161: 301.543508 | R161: 0.152 | S161: 0 | T161: 0
B162: 0.153 | C162: 0 | D162: 0 | E162: 146.2212043 | F162: 303.3963261 | R162: 0.153 | S162: 0 | T162: 0
B163: 0.154 | C163: 0 | D163: 0 | E163: 147.1469853 | F163: 305.2475083 | R163: 0.154 | S163: 0 | T163: 0
B164: 0.155 | C164: 0 | D164: 0 | E164: 148.0723859 | F164: 307.097056 | R164: 0.155 | S164: 0 | T164: 0
B165: 0.156 | C165: 0 | D165: 0 | E165: 148.9974065 | F165: 308.9449706 | R165: 0.156 | S165: 0 | T165: 0
B166: 0.157 | C166: 0 | D166: 0 | E166: 149.922047 | F166: 310.7912537 | R166: 0.157 | S166: 0 | T166: 0
B167: 0.158 | C167: 0 | D167: 0 | E167: 150.8463078 | F167: 312.6359066 | R167: 0.158 | S167: 0 | T167: 0
B168: 0.159 | C168: 0 | D168: 0 | E168: 151.7701889 | F168: 314.4789307 | R168: 0.159 | S168: 0 | T168: 0
B169: 0.16 | C169: 0 | D169: 0 | E169: 152.6936905 | F169: 316.3203276 | R169: 0.16 | S169: 0 | T169: 0
B170: 0.161 | C170: 0 | D170: 0 | E170: 153.6168127 | F170: 318.1600986 | R170: 0.161 | S170: 0 | T170: 0
B171: 0.162 | C171: 0 | D171: 0 | E171: 154.5395558 | F171: 319.9982452 | R171: 0.162 | S171: 0 | T171: 0
B172: 0.163 | C172: 0 | D172: 0 | E172: 155.4619198 | F172: 321.8347689 | R172: 0.163 | S172: 0 | T172: 0
B173: 0.164 | C173: 0 | D173: 0 | E173: 156.3839049 | F173: 323.6696709 | R173: 0.164 | S173: 0 | T173: 0
B174: 0.165 | C174: 0 | D174: 0 | E174: 157.3055114 | F174: 325.5029529 | R174: 0.165 | S174: 0 | T174: 0
B175: 0.166 | C175: 0 | D175: 0 | E175: 158.2267392 | F175: 327.3346162 | R175: 0.166 | S175: 0 | T175: 0
B176: 0.167 | C176: 0 | D176: 0 | E176: 159.1475887 | F176: 329.1646622 | R176: 0.167 | S176: 0 | T176: 0
B177: 0.168 | C177: 0 | D177: 0 | E177: 160.0680599 | F177: 330.9930924 | R177: 0.168 | S177: 0 | T177: 0
B178: 0.169 | C178: 0 | D178: 0 | E178: 160.9881529 | F178: 332.8199083 | R178: 0.169 | S178: 0 | T178: 0
B179: 0.17 | C179: 0 | D179: 0 | E179: 161.9078681 | F179: 334.6451111 | R179: 0.17 | S179: 0 | T179: 0
B180: 0.171 | C180: 0 | D180: 0 | E180: 162.8272055 | F180: 336.4687024 | R180: 0.171 | S180: 0 | T180: 0
B181: 0.172 | C181: 0 | D181: 0 | E181: 163.7461652 | F181: 338.2906835 | R181: 0.172 | S181: 0 | T181: 0
B182: 0.173 | C182: 0 | D182: 0 | E182: 164.6647474 | F182: 340.111056 | R182: 0.173 | S182: 0 | T182: 0
B183: 0.174 | C183: 0 | D183: 0 | E183: 165.5829523 | F183: 341.9298211 | R183: 0.174 | S183: 0 | T183: 0
B184: 0.175 | C184: 0 | D184: 0 | E184: 166.5007801 | F184: 343.7469804 | R184: 0.175 | S184: 0 | T184: 0
B185: 0.176 | C185: 0 | D185: 0 | E185: 167.4182308 | F185: 345.5625353 | R185: 0.176 | S185: 0 | T185: 0
B186: 0.177 | C186: 0 | D186: 0 | E186: 168.3353047 | F186: 347.3764871 | R186: 0.177 | S186: 0 | T186: 0
B187: 0.178 | C187: 0 | D187: 0 | E187: 169.2520019 | F187: 349.1888373 | R187: 0.178 | S187: 0 | T187: 0
B188: 0.179 | C188: 0 | D188: 0 | E188: 170.1683225 | F188: 350.9995873 | R188: 0.179 | S188: 0 | T188: 0
B189: 0.18 | C189: 0 | D189: 0 | E189: 171.0842667 | F189: 352.8087385 | R189: 0.18 | S189: 0 | T189: 0
B190: 0.181 | C190: 0 | D190: 0 | E190: 171.9998347 | F190: 354.6162923 | R190: 0.181 | S190: 0 | T190: 0
B191: 0.182 | C191: 0 | D191: 0 | E191: 172.9150266 | F191: 356.4222502 | R191: 0.182 | S191: 0 | T191: 0
B192: 0.183 | C192: 0 | D192: 0 | E192: 173.8298425 | F192: 358.2266135 | R192: 0.183 | S192: 0 | T192: 0
B193: 0.184 | C193: 0 | D193: 0 | E193: 174.7442827 | F193: 360.0293836 | R193: 0.184 | S193: 0 | T193: 0
B194: 0.185 | C194: 0 | D194: 0 | E194: 175.6583473 | F194: 361.830562 | R194: 0.185 | S194: 0 | T194: 0
B195: 0.186 | C195: 0 | D195: 0 | E195: 176.5720364 | F195: 363.6301501 | R195: 0.186 | S195: 0 | T195: 0
B196: 0.187 | C196: 0 | D196: 0 | E196: 177.4853502 | F196: 365.4281492 | R196: 0.187 | S196: 0 | T196: 0
B197: 0.188 | C197: 0 | D197: 0 | E197: 178.3982888 | F197: 367.2245608 | R197: 0.188 | S197: 0 | T197: 0
B198: 0.189 | C198: 0 | D198: 0 | E198: 179.3108524 | F198: 369.0193863 | R198: 0.189 | S198: 0 | T198: 0
B199: 0.19 | C199: 0 | D199: 0 | E199: 180.2230412 | F199: 370.812627 | R199: 0.19 | S199: 0 | T199: 0
B200: 0.191 | C200: 0 | D200: 0 | E200: 181.1348552 | F200: 372.6042845 | R200: 0.191 | S200: 0 | T200: 0
B201: 0.192 | C201: 0 | D201: 0 | E201: 182.0462947 | F201: 374.3943599 | R201: 0.192 | S201: 0 | T201: 0
B202: 0.193 | C202: 0 | D202: 0 | E202: 182.9573599 | F202: 376.1828549 | R202: =B202 -> 0.193 | S202: =C202 -> 0 | T202: =D202 -> 0
B203: 0.194 | C203: 0 | D203: 0 | E203: 183.8680508 | F203: 377.9697707 | R203: 0.194 | S203: 0 | T203: 0
B204: 0.195 | C204: 0 | D204: 0 | E204: 184.7783676 | F204: 379.7551088 | R204: 0.195 | S204: 0 | T204: 0
B205: 0.196 | C205: 0 | D205: 0 | E205: 185.6883104 | F205: 381.5388705 | R205: 0.196 | S205: 0 | T205: 0
B206: 0.197 | C206: 0 | D206: 0 | E206: 186.5978795 | F206: 383.3210572 | R206: 0.197 | S206: 0 | T206: 0
... 4294 more rows

Sheet SelfReg Response
B8: Time | C8: Base case, Self regulation response | D8: What If, Self regulation response
B9: 0 | C9: 0 | D9: 0
B10: 0.001 | C10: 0.9858439794 | D10: 2.119063942
B11: 0.002 | C11: 1.971283005 | D11: 4.236256871
B12: 0.003 | C12: 2.956317244 | D12: 6.351580439
B13: 0.004 | C13: 3.940946862 | D13: 8.465036296
B14: 0.005 | C14: 4.925172025 | D14: 10.57662609
B15: 0.006 | C15: 5.9089929 | D15: 12.68635147
B16: 0.007 | C16: 6.892409652 | D16: 14.79421409
B17: 0.008 | C17: 7.875422448 | D17: 16.90021558
B18: 0.009 | C18: 8.858031454 | D18: 19.00435759
B19: 0.01 | C19: 9.840236834 | D19: 21.10664176
B20: 0.011 | C20: 10.82203876 | D20: 23.20706973
B21: 0.012 | C21: 11.80343738 | D21: 25.30564315
B22: 0.013 | C22: 12.78443289 | D22: 27.40236364
B23: 0.014 | C23: 13.76502543 | D23: 29.49723285
B24: 0.015 | C24: 14.74521517 | D24: 31.59025241
B25: 0.016 | C25: 15.72500228 | D25: 33.68142395
B26: 0.017 | C26: 16.70438693 | D26: 35.7707491
B27: 0.018 | C27: 17.68336927 | D27: 37.8582295
B28: 0.019 | C28: 18.66194948 | D28: 39.94386677
B29: 0.02 | C29: 19.64012773 | D29: 42.02766254
B30: 0.021 | C30: 20.61790416 | D30: 44.10961844
B31: 0.022 | C31: 21.59527896 | D31: 46.18973609
B32: 0.023 | C32: 22.57225228 | D32: 48.26801712
B33: 0.024 | C33: 23.5488243 | D33: 50.34446314
B34: 0.025 | C34: 24.52499517 | D34: 52.41907577
B35: 0.026 | C35: 25.50076505 | D35: 54.49185664
B36: 0.027 | C36: 26.47613413 | D36: 56.56280736
B37: 0.028 | C37: 27.45110255 | D37: 58.63192955
B38: 0.029 | C38: 28.42567048 | D38: 60.69922483
B39: 0.03 | C39: 29.3998381 | D39: 62.76469479
B40: 0.031 | C40: 30.37360556 | D40: 64.82834107
B41: 0.032 | C41: 31.34697302 | D41: 66.89016526
B42: 0.033 | C42: 32.31994066 | D42: 68.95016898
B43: 0.034 | C43: 33.29250863 | D43: 71.00835383
B44: 0.035 | C44: 34.2646771 | D44: 73.06472142
B45: 0.036 | C45: 35.23644623 | D45: 75.11927336
B46: 0.037 | C46: 36.2078162 | D46: 77.17201124
B47: 0.038 | C47: 37.17878715 | D47: 79.22293667
B48: 0.039 | C48: 38.14935927 | D48: 81.27205125
B49: 0.04 | C49: 39.1195327 | D49: 83.31935658
B50: 0.041 | C50: 40.08930761 | D50: 85.36485426
B51: 0.042 | C51: 41.05868417 | D51: 87.40854587
B52: 0.043 | C52: 42.02766254 | D52: 89.45043302
B53: 0.044 | C53: 42.99624289 | D53: 91.4905173
B54: 0.045 | C54: 43.96442538 | D54: 93.52880031
B55: 0.046 | C55: 44.93221016 | D55: 95.56528362
B56: 0.047 | C56: 45.89959741 | D56: 97.59996883
B57: 0.048 | C57: 46.86658729 | D57: 99.63285754
B58: 0.049 | C58: 47.83317996 | D58: 101.6639513
B59: 0.05 | C59: 48.79937559 | D59: 103.6932518
B60: 0.051 | C60: 49.76517433 | D60: 105.7207604
B61: 0.052 | C61: 50.73057635 | D61: 107.7464789
B62: 0.053 | C62: 51.69558182 | D62: 109.7704088
B63: 0.054 | C63: 52.66019089 | D63: 111.7925517
B64: 0.055 | C64: 53.62440373 | D64: 113.8129092
B65: 0.056 | C65: 54.5882205 | D65: 115.8314828
B66: 0.057 | C66: 55.55164137 | D66: 117.8482741
B67: 0.058 | C67: 56.51466649 | D67: 119.8632847
B68: 0.059 | C68: 57.47729604 | D68: 121.8765162
B69: 0.06 | C69: 58.43953016 | D69: 123.88797
B70: 0.061 | C70: 59.40136904 | D70: 125.8976479
B71: 0.062 | C71: 60.36281282 | D71: 127.9055514
B72: 0.063 | C72: 61.32386166 | D72: 129.911682
B73: 0.064 | C73: 62.28451574 | D73: 131.9160413
B74: 0.065 | C74: 63.24477522 | D74: 133.9186308
B75: 0.066 | C75: 64.20464024 | D75: 135.9194522
B76: 0.067 | C76: 65.16411099 | D76: 137.918507
B77: 0.068 | C77: 66.12318762 | D77: 139.9157967
B78: 0.069 | C78: 67.08187029 | D78: 141.9113229
B79: 0.07 | C79: 68.04015916 | D79: 143.9050872
B80: 0.071 | C80: 68.9980544 | D80: 145.8970911
B81: 0.072 | C81: 69.95555616 | D81: 147.8873362
B82: 0.073 | C82: 70.91266461 | D82: 149.875824
B83: 0.074 | C83: 71.86937992 | D83: 151.8625561
B84: 0.075 | C84: 72.82570223 | D84: 153.847534
B85: 0.076 | C85: 73.78163172 | D85: 155.8307593
B86: 0.077 | C86: 74.73716854 | D86: 157.8122335
B87: 0.078 | C87: 75.69231286 | D87: 159.7919582
B88: 0.079 | C88: 76.64706483 | D88: 161.7699349
B89: 0.08 | C89: 77.60142463 | D89: 163.7461652
B90: 0.081 | C90: 78.5553924 | D90: 165.7206505
B91: 0.082 | C91: 79.50896831 | D91: 167.6933925
B92: 0.083 | C92: 80.46215252 | D92: 169.6643927
B93: 0.084 | C93: 81.4149452 | D93: 171.6336526
B94: 0.085 | C94: 82.3673465 | D94: 173.6011738
B95: 0.086 | C95: 83.31935658 | D95: 175.5669577
B96: 0.087 | C96: 84.27097561 | D96: 177.531006
B97: 0.088 | C97: 85.22220374 | D97: 179.4933201
B98: 0.089 | C98: 86.17304114 | D98: 181.4539016
B99: 0.09 | C99: 87.12348796 | D99: 183.4127521
B100: 0.091 | C100: 88.07354437 | D100: 185.369873
B101: 0.092 | C101: 89.02321053 | D101: 187.3252658
B102: 0.093 | C102: 89.97248659 | D102: 189.2789322
B103: 0.094 | C103: 90.92137273 | D103: 191.2308735
B104: 0.095 | C104: 91.86986908 | D104: 193.1810915
B105: 0.096 | C105: 92.81797583 | D105: 195.1295874
B106: 0.097 | C106: 93.76569313 | D106: 197.076363
B107: 0.098 | C107: 94.71302113 | D107: 199.0214197
B108: 0.099 | C108: 95.65996 | D108: 200.964759
B109: 0.1 | C109: 96.6065099 | D109: 202.9063825
B110: 0.101 | C110: 97.55267098 | D110: 204.8462916
B111: 0.102 | C111: 98.49844342 | D111: 206.7844879
B112: 0.103 | C112: 99.44382735 | D112: 208.7209728
B113: 0.104 | C113: 100.388823 | D113: 210.655748
B114: 0.105 | C114: 101.3334304 | D114: 212.5888148
B115: 0.106 | C115: 102.2776498 | D115: 214.5201749
B116: 0.107 | C116: 103.2214814 | D116: 216.4498297
B117: 0.108 | C117: 104.1649252 | D117: 218.3777807
B118: 0.109 | C118: 105.1079816 | D118: 220.3040295
B119: 0.11 | C119: 106.0506505 | D119: 222.2285774
B120: 0.111 | C120: 106.9929322 | D120: 224.1514261
B121: 0.112 | C121: 107.9348269 | D121: 226.0725771
B122: 0.113 | C122: 108.8763347 | D122: 227.9920318
B123: 0.114 | C123: 109.8174557 | D123: 229.9097917
B124: 0.115 | C124: 110.7581902 | D124: 231.8258583
B125: 0.116 | C125: 111.6985382 | D125: 233.7402331
B126: 0.117 | C126: 112.6384999 | D126: 235.6529177
B127: 0.118 | C127: 113.5780756 | D127: 237.5639135
B128: 0.119 | C128: 114.5172653 | D128: 239.473222
B129: 0.12 | C129: 115.4560692 | D129: 241.3808446
B130: 0.121 | C130: 116.3944875 | D130: 243.286783
B131: 0.122 | C131: 117.3325203 | D131: 245.1910385
B132: 0.123 | C132: 118.2701678 | D132: 247.0936126
B133: 0.124 | C133: 119.2074301 | D133: 248.9945069
B134: 0.125 | C134: 120.1443075 | D134: 250.8937228
B135: 0.126 | C135: 121.0808 | D135: 252.7912618
B136: 0.127 | C136: 122.0169078 | D136: 254.6871254
B137: 0.128 | C137: 122.9526311 | D137: 256.5813151
B138: 0.129 | C138: 123.88797 | D138: 258.4738323
B139: 0.13 | C139: 124.8229248 | D139: 260.3646785
B140: 0.131 | C140: 125.7574954 | D140: 262.2538551
B141: 0.132 | C141: 126.6916822 | D141: 264.1413638
B142: 0.133 | C142: 127.6254853 | D142: 266.0272059
B143: 0.134 | C143: 128.5589047 | D143: 267.9113829
B144: 0.135 | C144: 129.4919408 | D144: 269.7938963
B145: 0.136 | C145: 130.4245936 | D145: 271.6747475
B146: 0.137 | C146: 131.3568633 | D146: 273.553938
B147: 0.138 | C147: 132.28875 | D147: 275.4314694
B148: 0.139 | C148: 133.220254 | D148: 277.3073429
B149: 0.14 | C149: 134.1513753 | D149: 279.1815602
B150: 0.141 | C150: 135.0821141 | D150: 281.0541227
B151: 0.142 | C151: 136.0124707 | D151: 282.9250317
B152: 0.143 | C152: 136.942445 | D152: 284.7942889
B153: 0.144 | C153: 137.8720374 | D153: 286.6618957
B154: 0.145 | C154: 138.8012479 | D154: 288.5278534
B155: 0.146 | C155: 139.7300767 | D155: 290.3921636
B156: 0.147 | C156: 140.658524 | D156: 292.2548277
B157: 0.148 | C157: 141.5865899 | D157: 294.1158472
B158: 0.149 | C158: 142.5142746 | D158: 295.9752235
B159: 0.15 | C159: 143.4415783 | D159: 297.8329581
B160: 0.151 | C160: 144.368501 | D160: 299.6890525
B161: 0.152 | C161: 145.2950429 | D161: 301.543508
B162: 0.153 | C162: 146.2212043 | D162: 303.3963261
B163: 0.154 | C163: 147.1469853 | D163: 305.2475083
B164: 0.155 | C164: 148.0723859 | D164: 307.097056
B165: 0.156 | C165: 148.9974065 | D165: 308.9449706
B166: 0.157 | C166: 149.922047 | D166: 310.7912537
B167: 0.158 | C167: 150.8463078 | D167: 312.6359066
B168: 0.159 | C168: 151.7701889 | D168: 314.4789307
B169: 0.16 | C169: 152.6936905 | D169: 316.3203276
B170: 0.161 | C170: 153.6168127 | D170: 318.1600986
B171: 0.162 | C171: 154.5395558 | D171: 319.9982452
B172: 0.163 | C172: 155.4619198 | D172: 321.8347689
B173: 0.164 | C173: 156.3839049 | D173: 323.6696709
B174: 0.165 | C174: 157.3055114 | D174: 325.5029529
B175: 0.166 | C175: 158.2267392 | D175: 327.3346162
B176: 0.167 | C176: 159.1475887 | D176: 329.1646622
B177: 0.168 | C177: 160.0680599 | D177: 330.9930924
B178: 0.169 | C178: 160.9881529 | D178: 332.8199083
B179: 0.17 | C179: 161.9078681 | D179: 334.6451111
B180: 0.171 | C180: 162.8272055 | D180: 336.4687024
B181: 0.172 | C181: 163.7461652 | D181: 338.2906835
B182: 0.173 | C182: 164.6647474 | D182: 340.111056
B183: 0.174 | C183: 165.5829523 | D183: 341.9298211
B184: 0.175 | C184: 166.5007801 | D184: 343.7469804
B185: 0.176 | C185: 167.4182308 | D185: 345.5625353
B186: 0.177 | C186: 168.3353047 | D186: 347.3764871
B187: 0.178 | C187: 169.2520019 | D187: 349.1888373
B188: 0.179 | C188: 170.1683225 | D188: 350.9995873
B189: 0.18 | C189: 171.0842667 | D189: 352.8087385
B190: 0.181 | C190: 171.9998347 | D190: 354.6162923
B191: 0.182 | C191: 172.9150266 | D191: 356.4222502
B192: 0.183 | C192: 173.8298425 | D192: 358.2266135
B193: 0.184 | C193: 174.7442827 | D193: 360.0293836
B194: 0.185 | C194: 175.6583473 | D194: 361.830562
B195: 0.186 | C195: 176.5720364 | D195: 363.6301501
B196: 0.187 | C196: 177.4853502 | D196: 365.4281492
B197: 0.188 | C197: 178.3982888 | D197: 367.2245608
B198: 0.189 | C198: 179.3108524 | D198: 369.0193863
B199: 0.19 | C199: 180.2230412 | D199: 370.812627
B200: 0.191 | C200: 181.1348552 | D200: 372.6042845
B201: 0.192 | C201: 182.0462947 | D201: 374.3943599
B202: 0.193 | C202: 182.9573599 | D202: 376.1828549
B203: 0.194 | C203: 183.8680508 | D203: 377.9697707
B204: 0.195 | C204: 184.7783676 | D204: 379.7551088
B205: 0.196 | C205: 185.6883104 | D205: 381.5388705
B206: 0.197 | C206: 186.5978795 | D206: 383.3210572
B207: 0.198 | C207: 187.507075 | D207: 385.1016704
... 4293 more rows

Sheet Fprime
B8: Time (s) | C8: Base case, Frequency rate of change | D8: WhatIf, Frequency rate of change
B9: 0 | C9: -0.3225670721 | D9: -0.6935192051 | E9: 0
B10: 0.001 | C10: -0.3223021259 | D10: -0.6922950695 | E10: 0.001
B11: 0.002 | C11: -0.3221697344 | D11: -0.6916838122 | E11: 0.002
B12: 0.003 | C12: -0.3220373973 | D12: -0.6910730946 | E12: 0.003
B13: 0.004 | C13: -0.3219051145 | D13: -0.6904629162 | E13: 0.004
B14: 0.005 | C14: -0.3217728861 | D14: -0.6898532766 | E14: 0.005
B15: 0.006 | C15: -0.321640712 | D15: -0.6892441753 | E15: 0.006
B16: 0.007 | C16: -0.3215085922 | D16: -0.6886356117 | E16: 0.007
B17: 0.008 | C17: -0.3213765266 | D17: -0.6880275855 | E17: 0.008
B18: 0.009 | C18: -0.3212445153 | D18: -0.6874200962 | E18: 0.009
B19: 0.01 | C19: -0.3211125582 | D19: -0.6868131432 | E19: 0.01
B20: 0.011 | C20: -0.3209806554 | D20: -0.6862067261 | E20: 0.011
B21: 0.012 | C21: -0.3208488067 | D21: -0.6856008445 | E21: 0.012
B22: 0.013 | C22: -0.3207170122 | D22: -0.6849954978 | E22: 0.013
B23: 0.014 | C23: -0.3205852718 | D23: -0.6843906856 | E23: 0.014
B24: 0.015 | C24: -0.3204535855 | D24: -0.6837864075 | E24: 0.015
B25: 0.016 | C25: -0.3203219533 | D25: -0.6831826628 | E25: 0.016
B26: 0.017 | C26: -0.3201903752 | D26: -0.6825794513 | E26: 0.017
B27: 0.018 | C27: -0.3200588511 | D27: -0.6819767723 | E27: 0.018
B28: 0.019 | C28: -0.3199273811 | D28: -0.6813746255 | E28: 0.019
B29: 0.02 | C29: -0.3197959651 | D29: -0.6807730103 | E29: 0.02
B30: 0.021 | C30: -0.319664603 | D30: -0.6801719263 | E30: 0.021
B31: 0.022 | C31: -0.3195332949 | D31: -0.6795713731 | E31: 0.022
B32: 0.023 | C32: -0.3194020408 | D32: -0.6789713501 | E32: 0.023
B33: 0.024 | C33: -0.3192708405 | D33: -0.6783718569 | E33: 0.024
B34: 0.025 | C34: -0.3191396942 | D34: -0.677772893 | E34: 0.025
B35: 0.026 | C35: -0.3190086017 | D35: -0.6771744579 | E35: 0.026
B36: 0.027 | C36: -0.3188775631 | D36: -0.6765765513 | E36: 0.027
B37: 0.028 | C37: -0.3187465783 | D37: -0.6759791725 | E37: 0.028
B38: 0.029 | C38: -0.3186156473 | D38: -0.6753823213 | E38: 0.029
B39: 0.03 | C39: -0.3184847701 | D39: -0.6747859969 | E39: 0.03
B40: 0.031 | C40: -0.3183539466 | D40: -0.6741901992 | E40: 0.031
B41: 0.032 | C41: -0.3182231769 | D41: -0.6735949274 | E41: 0.032
B42: 0.033 | C42: -0.3180924609 | D42: -0.6730001813 | E42: 0.033
B43: 0.034 | C43: -0.3179617986 | D43: -0.6724059603 | E43: 0.034
B44: 0.035 | C44: -0.3178311899 | D44: -0.671812264 | E44: 0.035
B45: 0.036 | C45: -0.3177006349 | D45: -0.6712190918 | E45: 0.036
B46: 0.037 | C46: -0.3175701336 | D46: -0.6706264434 | E46: 0.037
B47: 0.038 | C47: -0.3174396858 | D47: -0.6700343183 | E47: 0.038
B48: 0.039 | C48: -0.3173092917 | D48: -0.669442716 | E48: 0.039
B49: 0.04 | C49: -0.3171789511 | D49: -0.668851636 | E49: 0.04
B50: 0.041 | C50: -0.317048664 | D50: -0.6682610779 | E50: 0.041
B51: 0.042 | C51: -0.3169184305 | D51: -0.6676710413 | E51: 0.042
B52: 0.043 | C52: -0.3167882504 | D52: -0.6670815256 | E52: 0.043
B53: 0.044 | C53: -0.3166581238 | D53: -0.6664925304 | E53: 0.044
B54: 0.045 | C54: -0.3165280507 | D54: -0.6659040553 | E54: 0.045
B55: 0.046 | C55: -0.316398031 | D55: -0.6653160998 | E55: 0.046
B56: 0.047 | C56: -0.3162680647 | D56: -0.6647286634 | E56: 0.047
B57: 0.048 | C57: -0.3161381518 | D57: -0.6641417456 | E57: 0.048
B58: 0.049 | C58: -0.3160082923 | D58: -0.6635553461 | E58: 0.049
B59: 0.05 | C59: -0.3158784861 | D59: -0.6629694644 | E59: 0.05
B60: 0.051 | C60: -0.3157487332 | D60: -0.6623840999 | E60: 0.051
B61: 0.052 | C61: -0.3156190336 | D61: -0.6617992523 | E61: 0.052
B62: 0.053 | C62: -0.3154893873 | D62: -0.6612149211 | E62: 0.053
B63: 0.054 | C63: -0.3153597943 | D63: -0.6606311058 | E63: 0.054
B64: 0.055 | C64: -0.3152302544 | D64: -0.660047806 | E64: 0.055
B65: 0.056 | C65: -0.3151007678 | D65: -0.6594650212 | E65: 0.056
B66: 0.057 | C66: -0.3149713344 | D66: -0.658882751 | E66: 0.057
B67: 0.058 | C67: -0.3148419542 | D67: -0.6583009948 | E67: 0.058
B68: 0.059 | C68: -0.3147126271 | D68: -0.6577197524 | E68: 0.059
B69: 0.06 | C69: -0.3145833531 | D69: -0.6571390231 | E69: 0.06
B70: 0.061 | C70: -0.3144541322 | D70: -0.6565588066 | E70: 0.061
B71: 0.062 | C71: -0.3143249644 | D71: -0.6559791024 | E71: 0.062
B72: 0.063 | C72: -0.3141958497 | D72: -0.6553999101 | E72: 0.063
B73: 0.064 | C73: -0.314066788 | D73: -0.6548212291 | E73: 0.064
B74: 0.065 | C74: -0.3139377793 | D74: -0.6542430591 | E74: 0.065
B75: 0.066 | C75: -0.3138088236 | D75: -0.6536653995 | E75: 0.066
B76: 0.067 | C76: -0.3136799209 | D76: -0.6530882501 | E76: 0.067
B77: 0.068 | C77: -0.3135510711 | D77: -0.6525116102 | E77: 0.068
B78: 0.069 | C78: -0.3134222743 | D78: -0.6519354794 | E78: 0.069
B79: 0.07 | C79: -0.3132935303 | D79: -0.6513598573 | E79: 0.07
B80: 0.071 | C80: -0.3131648393 | D80: -0.6507847435 | E80: 0.071
B81: 0.072 | C81: -0.3130362011 | D81: -0.6502101375 | E81: 0.072
B82: 0.073 | C82: -0.3129076157 | D82: -0.6496360388 | E82: 0.073
B83: 0.074 | C83: -0.3127790832 | D83: -0.649062447 | E83: 0.074
B84: 0.075 | C84: -0.3126506034 | D84: -0.6484893616 | E84: 0.075
B85: 0.076 | C85: -0.3125221765 | D85: -0.6479167823 | E85: 0.076
B86: 0.077 | C86: -0.3123938022 | D86: -0.6473447085 | E86: 0.077
B87: 0.078 | C87: -0.3122654808 | D87: -0.6467731398 | E87: 0.078
B88: 0.079 | C88: -0.312137212 | D88: -0.6462020758 | E88: 0.079
B89: 0.08 | C89: -0.3120089959 | D89: -0.645631516 | E89: 0.08
B90: 0.081 | C90: -0.3118808325 | D90: -0.64506146 | E90: 0.081
B91: 0.082 | C91: -0.3117527217 | D91: -0.6444919073 | E91: 0.082
B92: 0.083 | C92: -0.3116246636 | D92: -0.6439228575 | E92: 0.083
B93: 0.084 | C93: -0.3114966581 | D93: -0.6433543101 | E93: 0.084
B94: 0.085 | C94: -0.3113687051 | D94: -0.6427862647 | E94: 0.085
B95: 0.086 | C95: -0.3112408047 | D95: -0.6422187209 | E95: 0.086
B96: 0.087 | C96: -0.3111129568 | D96: -0.6416516781 | E96: 0.087
B97: 0.088 | C97: -0.3109851615 | D97: -0.6410851361 | E97: 0.088
B98: 0.089 | C98: -0.3108574186 | D98: -0.6405190943 | E98: 0.089
B99: 0.09 | C99: -0.3107297282 | D99: -0.6399535522 | E99: 0.09
B100: 0.091 | C100: -0.3106020903 | D100: -0.6393885095 | E100: 0.091
B101: 0.092 | C101: -0.3104745048 | D101: -0.6388239657 | E101: 0.092
B102: 0.093 | C102: -0.3103469717 | D102: -0.6382599203 | E102: 0.093
B103: 0.094 | C103: -0.310219491 | D103: -0.637696373 | E103: 0.094
B104: 0.095 | C104: -0.3100920627 | D104: -0.6371333233 | E104: 0.095
B105: 0.096 | C105: -0.3099646867 | D105: -0.6365707707 | E105: 0.096
B106: 0.097 | C106: -0.309837363 | D106: -0.6360087148 | E106: 0.097
B107: 0.098 | C107: -0.3097100916 | D107: -0.6354471551 | E107: 0.098
B108: 0.099 | C108: -0.3095828725 | D108: -0.6348860913 | E108: 0.099
B109: 0.1 | C109: -0.3094557057 | D109: -0.6343255229 | E109: 0.1
B110: 0.101 | C110: -0.3093285911 | D110: -0.6337654494 | E110: 0.101
B111: 0.102 | C111: -0.3092015287 | D111: -0.6332058704 | E111: 0.102
B112: 0.103 | C112: -0.3090745185 | D112: -0.6326467856 | E112: 0.103
B113: 0.104 | C113: -0.3089475605 | D113: -0.6320881943 | E113: 0.104
B114: 0.105 | C114: -0.3088206546 | D114: -0.6315300963 | E114: 0.105
B115: 0.106 | C115: -0.3086938009 | D115: -0.630972491 | E115: 0.106
B116: 0.107 | C116: -0.3085669992 | D116: -0.6304153781 | E116: 0.107
B117: 0.108 | C117: -0.3084402497 | D117: -0.629858757 | E117: 0.108
B118: 0.109 | C118: -0.3083135522 | D118: -0.6293026274 | E118: 0.109
B119: 0.11 | C119: -0.3081869068 | D119: -0.6287469889 | E119: 0.11
B120: 0.111 | C120: -0.3080603133 | D120: -0.628191841 | E120: 0.111
B121: 0.112 | C121: -0.3079337719 | D121: -0.6276371832 | E121: 0.112
B122: 0.113 | C122: -0.3078072825 | D122: -0.6270830151 | E122: 0.113
B123: 0.114 | C123: -0.307680845 | D123: -0.6265293364 | E123: 0.114
B124: 0.115 | C124: -0.3075544595 | D124: -0.6259761465 | E124: 0.115
B125: 0.116 | C125: -0.3074281258 | D125: -0.625423445 | E125: 0.116
B126: 0.117 | C126: -0.3073018441 | D126: -0.6248712316 | E126: 0.117
B127: 0.118 | C127: -0.3071756142 | D127: -0.6243195057 | E127: 0.118
B128: 0.119 | C128: -0.3070494362 | D128: -0.623768267 | E128: 0.119
B129: 0.12 | C129: -0.30692331 | D129: -0.623217515 | E129: 0.12
B130: 0.121 | C130: -0.3067972357 | D130: -0.6226672492 | E130: 0.121
B131: 0.122 | C131: -0.3066712131 | D131: -0.6221174693 | E131: 0.122
B132: 0.123 | C132: -0.3065452423 | D132: -0.6215681749 | E132: 0.123
B133: 0.124 | C133: -0.3064193232 | D133: -0.6210193654 | E133: 0.124
B134: 0.125 | C134: -0.3062934558 | D134: -0.6204710405 | E134: 0.125
B135: 0.126 | C135: -0.3061676402 | D135: -0.6199231998 | E135: 0.126
B136: 0.127 | C136: -0.3060418762 | D136: -0.6193758427 | E136: 0.127
B137: 0.128 | C137: -0.3059161639 | D137: -0.618828969 | E137: 0.128
B138: 0.129 | C138: -0.3057905032 | D138: -0.6182825781 | E138: 0.129
B139: 0.13 | C139: -0.3056648942 | D139: -0.6177366696 | E139: 0.13
B140: 0.131 | C140: -0.3055393367 | D140: -0.6171912432 | E140: 0.131
B141: 0.132 | C141: -0.3054138308 | D141: -0.6166462983 | E141: 0.132
B142: 0.133 | C142: -0.3052883765 | D142: -0.6161018346 | E142: 0.133
B143: 0.134 | C143: -0.3051629737 | D143: -0.6155578516 | E143: 0.134
B144: 0.135 | C144: -0.3050376224 | D144: -0.6150143489 | E144: 0.135
B145: 0.136 | C145: -0.3049123226 | D145: -0.6144713261 | E145: 0.136
B146: 0.137 | C146: -0.3047870743 | D146: -0.6139287827 | E146: 0.137
B147: 0.138 | C147: -0.3046618774 | D147: -0.6133867184 | E147: 0.138
B148: 0.139 | C148: -0.304536732 | D148: -0.6128451327 | E148: 0.139
B149: 0.14 | C149: -0.304411638 | D149: -0.6123040252 | E149: 0.14
B150: 0.141 | C150: -0.3042865953 | D150: -0.6117633955 | E150: 0.141
B151: 0.142 | C151: -0.304161604 | D151: -0.6112232431 | E151: 0.142
B152: 0.143 | C152: -0.304036664 | D152: -0.6106835676 | E152: 0.143
B153: 0.144 | C153: -0.3039117754 | D153: -0.6101443686 | E153: 0.144
B154: 0.145 | C154: -0.3037869381 | D154: -0.6096056457 | E154: 0.145
B155: 0.146 | C155: -0.303662152 | D155: -0.6090673985 | E155: 0.146
B156: 0.147 | C156: -0.3035374172 | D156: -0.6085296265 | E156: 0.147
B157: 0.148 | C157: -0.3034127337 | D157: -0.6079923294 | E157: 0.148
B158: 0.149 | C158: -0.3032881013 | D158: -0.6074555066 | E158: 0.149
B159: 0.15 | C159: -0.3031635202 | D159: -0.6069191578 | E159: 0.15
B160: 0.151 | C160: -0.3030389902 | D160: -0.6063832826 | E160: 0.151
B161: 0.152 | C161: -0.3029145114 | D161: -0.6058478806 | E161: 0.152
B162: 0.153 | C162: -0.3027900837 | D162: -0.6053129512 | E162: 0.153
B163: 0.154 | C163: -0.3026657071 | D163: -0.6047784942 | E163: 0.154
B164: 0.155 | C164: -0.3025413817 | D164: -0.6042445091 | E164: 0.155
B165: 0.156 | C165: -0.3024171072 | D165: -0.6037109954 | E165: 0.156
B166: 0.157 | C166: -0.3022928839 | D166: -0.6031779529 | E166: 0.157
B167: 0.158 | C167: -0.3021687115 | D167: -0.6026453809 | E167: 0.158
B168: 0.159 | C168: -0.3020445902 | D168: -0.6021132792 | E168: 0.159
B169: 0.16 | C169: -0.3019205198 | D169: -0.6015816473 | E169: 0.16
B170: 0.161 | C170: -0.3017965005 | D170: -0.6010504848 | E170: 0.161
B171: 0.162 | C171: -0.301672532 | D171: -0.6005197913 | E171: 0.162
B172: 0.163 | C172: -0.3015486145 | D172: -0.5999895664 | E172: 0.163
B173: 0.164 | C173: -0.3014247479 | D173: -0.5994598096 | E173: 0.164
B174: 0.165 | C174: -0.3013009321 | D174: -0.5989305206 | E174: 0.165
B175: 0.166 | C175: -0.3011771673 | D175: -0.5984016989 | E175: 0.166
B176: 0.167 | C176: -0.3010534532 | D176: -0.5978733441 | E176: 0.167
B177: 0.168 | C177: -0.30092979 | D177: -0.5973454558 | E177: 0.168
B178: 0.169 | C178: -0.3008061776 | D178: -0.5968180337 | E178: 0.169
B179: 0.17 | C179: -0.3006826159 | D179: -0.5962910772 | E179: 0.17
B180: 0.171 | C180: -0.300559105 | D180: -0.595764586 | E180: 0.171
B181: 0.172 | C181: -0.3004356449 | D181: -0.5952385596 | E181: 0.172
B182: 0.173 | C182: -0.3003122354 | D182: -0.5947129977 | E182: 0.173
B183: 0.174 | C183: -0.3001888767 | D183: -0.5941878998 | E183: 0.174
B184: 0.175 | C184: -0.3000655686 | D184: -0.5936632656 | E184: 0.175
B185: 0.176 | C185: -0.2999423112 | D185: -0.5931390946 | E185: 0.176
B186: 0.177 | C186: -0.2998191044 | D186: -0.5926153864 | E186: 0.177
B187: 0.178 | C187: -0.2996959482 | D187: -0.5920921406 | E187: 0.178
B188: 0.179 | C188: -0.2995728426 | D188: -0.5915693568 | E188: 0.179
B189: 0.18 | C189: -0.2994497875 | D189: -0.5910470346 | E189: 0.18
B190: 0.181 | C190: -0.299326783 | D190: -0.5905251736 | E190: 0.181
B191: 0.182 | C191: -0.2992038291 | D191: -0.5900037733 | E191: 0.182
B192: 0.183 | C192: -0.2990809256 | D192: -0.5894828335 | E192: 0.183
B193: 0.184 | C193: -0.2989580726 | D193: -0.5889623535 | E193: 0.184
B194: 0.185 | C194: -0.2988352701 | D194: -0.5884423332 | E194: 0.185
B195: 0.186 | C195: -0.2987125181 | D195: -0.5879227719 | E195: 0.186
B196: 0.187 | C196: -0.2985898164 | D196: -0.5874036695 | E196: 0.187
B197: 0.188 | C197: -0.2984671652 | D197: -0.5868850253 | E197: 0.188
B198: 0.189 | C198: -0.2983445643 | D198: -0.5863668391 | E198: 0.189
B199: 0.19 | C199: -0.2982220138 | D199: -0.5858491104 | E199: 0.19
B200: 0.191 | C200: -0.2980995137 | D200: -0.5853318389 | E200: 0.191
B201: 0.192 | C201: -0.2979770639 | D201: -0.5848150241 | E201: 0.192
B202: 0.193 | C202: -0.2978546643 | D202: -0.5842986655 | E202: 0.193
B203: 0.194 | C203: -0.297732315 | D203: -0.583782763 | E203: 0.194
B204: 0.195 | C204: -0.297610016 | D204: -0.5832673159 | E204: 0.195
B205: 0.196 | C205: -0.2974877673 | D205: -0.5827523239 | E205: 0.196
B206: 0.197 | C206: -0.2973655687 | D206: -0.5822377866 | E206: 0.197
B207: 0.198 | C207: -0.2972434204 | D207: -0.5817237037 | E207: 0.198
... 4293 more rows

Sheet Inertial Response
B8: Time | C8: Base case, Inertial response | D8: What if, Inertial response
B9: 0 | C9: -2400 | D9: -2400
B10: 0.001 | C10: -2398.028717 | D10: -2395.763743
B11: 0.002 | C11: -2397.043683 | D11: -2393.64842
B12: 0.003 | C12: -2396.059053 | D12: -2391.534964
B13: 0.004 | C13: -2395.074828 | D13: -2389.423374
B14: 0.005 | C14: -2394.091007 | D14: -2387.313649
B15: 0.006 | C15: -2393.10759 | D15: -2385.205786
B16: 0.007 | C16: -2392.124578 | D16: -2383.099784
B17: 0.008 | C17: -2391.141969 | D17: -2380.995642
B18: 0.009 | C18: -2390.159763 | D18: -2378.893358
B19: 0.01 | C19: -2389.177961 | D19: -2376.79293
B20: 0.011 | C20: -2388.196563 | D20: -2374.694357
B21: 0.012 | C21: -2387.215567 | D21: -2372.597636
B22: 0.013 | C22: -2386.234975 | D22: -2370.502767
B23: 0.014 | C23: -2385.254785 | D23: -2368.409748
B24: 0.015 | C24: -2384.274998 | D24: -2366.318576
B25: 0.016 | C25: -2383.295613 | D25: -2364.229251
B26: 0.017 | C26: -2382.316631 | D26: -2362.14177
B27: 0.018 | C27: -2381.338051 | D27: -2360.056133
B28: 0.019 | C28: -2380.359872 | D28: -2357.972337
B29: 0.02 | C29: -2379.382096 | D29: -2355.890382
B30: 0.021 | C30: -2378.404721 | D30: -2353.810264
B31: 0.022 | C31: -2377.427748 | D31: -2351.731983
B32: 0.023 | C32: -2376.451176 | D32: -2349.655537
B33: 0.024 | C33: -2375.475005 | D33: -2347.580924
B34: 0.025 | C34: -2374.499235 | D34: -2345.508143
B35: 0.026 | C35: -2373.523866 | D35: -2343.437193
B36: 0.027 | C36: -2372.548897 | D36: -2341.36807
B37: 0.028 | C37: -2371.57433 | D37: -2339.300775
B38: 0.029 | C38: -2370.600162 | D38: -2337.235305
B39: 0.03 | C39: -2369.626394 | D39: -2335.171659
B40: 0.031 | C40: -2368.653027 | D40: -2333.109835
B41: 0.032 | C41: -2367.680059 | D41: -2331.049831
B42: 0.033 | C42: -2366.707491 | D42: -2328.991646
B43: 0.034 | C43: -2365.735323 | D43: -2326.935279
B44: 0.035 | C44: -2364.763554 | D44: -2324.880727
B45: 0.036 | C45: -2363.792184 | D45: -2322.827989
B46: 0.037 | C46: -2362.821213 | D46: -2320.777063
B47: 0.038 | C47: -2361.850641 | D47: -2318.727949
B48: 0.039 | C48: -2360.880467 | D48: -2316.680643
B49: 0.04 | C49: -2359.910692 | D49: -2314.635146
B50: 0.041 | C50: -2358.941316 | D50: -2312.591454
B51: 0.042 | C51: -2357.972337 | D51: -2310.549567
B52: 0.043 | C52: -2357.003757 | D52: -2308.509483
B53: 0.044 | C53: -2356.035575 | D53: -2306.4712
B54: 0.045 | C54: -2355.06779 | D54: -2304.434716
B55: 0.046 | C55: -2354.100403 | D55: -2302.400031
B56: 0.047 | C56: -2353.133413 | D56: -2300.367142
B57: 0.048 | C57: -2352.16682 | D57: -2298.336049
B58: 0.049 | C58: -2351.200624 | D58: -2296.306748
B59: 0.05 | C59: -2350.234826 | D59: -2294.27924
B60: 0.051 | C60: -2349.269424 | D60: -2292.253521
B61: 0.052 | C61: -2348.304418 | D61: -2290.229591
B62: 0.053 | C62: -2347.339809 | D62: -2288.207448
B63: 0.054 | C63: -2346.375596 | D63: -2286.187091
B64: 0.055 | C64: -2345.411779 | D64: -2284.168517
B65: 0.056 | C65: -2344.448359 | D65: -2282.151726
B66: 0.057 | C66: -2343.485334 | D66: -2280.136715
B67: 0.058 | C67: -2342.522704 | D67: -2278.123484
B68: 0.059 | C68: -2341.56047 | D68: -2276.11203
B69: 0.06 | C69: -2340.598631 | D69: -2274.102352
B70: 0.061 | C70: -2339.637187 | D70: -2272.094449
B71: 0.062 | C71: -2338.676138 | D71: -2270.088318
B72: 0.063 | C72: -2337.715484 | D72: -2268.083959
B73: 0.064 | C73: -2336.755225 | D73: -2266.081369
B74: 0.065 | C74: -2335.79536 | D74: -2264.080548
B75: 0.066 | C75: -2334.835889 | D75: -2262.081493
B76: 0.067 | C76: -2333.876812 | D76: -2260.084203
B77: 0.068 | C77: -2332.91813 | D77: -2258.088677
B78: 0.069 | C78: -2331.959841 | D78: -2256.094913
B79: 0.07 | C79: -2331.001946 | D79: -2254.102909
B80: 0.071 | C80: -2330.044444 | D80: -2252.112664
B81: 0.072 | C81: -2329.087335 | D81: -2250.124176
B82: 0.073 | C82: -2328.13062 | D82: -2248.137444
B83: 0.074 | C83: -2327.174298 | D83: -2246.152466
B84: 0.075 | C84: -2326.218368 | D84: -2244.169241
B85: 0.076 | C85: -2325.262831 | D85: -2242.187766
B86: 0.077 | C86: -2324.307687 | D86: -2240.208042
B87: 0.078 | C87: -2323.352935 | D87: -2238.230065
B88: 0.079 | C88: -2322.398575 | D88: -2236.253835
B89: 0.08 | C89: -2321.444608 | D89: -2234.279349
B90: 0.081 | C90: -2320.491032 | D90: -2232.306607
B91: 0.082 | C91: -2319.537847 | D91: -2230.335607
B92: 0.083 | C92: -2318.585055 | D92: -2228.366347
B93: 0.084 | C93: -2317.632654 | D93: -2226.398826
B94: 0.085 | C94: -2316.680643 | D94: -2224.433042
B95: 0.086 | C95: -2315.729024 | D95: -2222.468994
B96: 0.087 | C96: -2314.777796 | D96: -2220.50668
B97: 0.088 | C97: -2313.826959 | D97: -2218.546098
B98: 0.089 | C98: -2312.876512 | D98: -2216.587248
B99: 0.09 | C99: -2311.926456 | D99: -2214.630127
B100: 0.091 | C100: -2310.976789 | D100: -2212.674734
B101: 0.092 | C101: -2310.027513 | D101: -2210.721068
B102: 0.093 | C102: -2309.078627 | D102: -2208.769126
B103: 0.094 | C103: -2308.130131 | D103: -2206.818909
B104: 0.095 | C104: -2307.182024 | D104: -2204.870413
B105: 0.096 | C105: -2306.234307 | D105: -2202.923637
B106: 0.097 | C106: -2305.286979 | D106: -2200.97858
B107: 0.098 | C107: -2304.34004 | D107: -2199.035241
B108: 0.099 | C108: -2303.39349 | D108: -2197.093618
B109: 0.1 | C109: -2302.447329 | D109: -2195.153708
B110: 0.101 | C110: -2301.501557 | D110: -2193.215512
B111: 0.102 | C111: -2300.556173 | D111: -2191.279027
B112: 0.103 | C112: -2299.611177 | D112: -2189.344252
B113: 0.104 | C113: -2298.66657 | D113: -2187.411185
B114: 0.105 | C114: -2297.72235 | D114: -2185.479825
B115: 0.106 | C115: -2296.778519 | D115: -2183.55017
B116: 0.107 | C116: -2295.835075 | D116: -2181.622219
B117: 0.108 | C117: -2294.892018 | D117: -2179.695971
B118: 0.109 | C118: -2293.949349 | D118: -2177.771423
B119: 0.11 | C119: -2293.007068 | D119: -2175.848574
B120: 0.111 | C120: -2292.065173 | D120: -2173.927423
B121: 0.112 | C121: -2291.123665 | D121: -2172.007968
B122: 0.113 | C122: -2290.182544 | D122: -2170.090208
B123: 0.114 | C123: -2289.24181 | D123: -2168.174142
B124: 0.115 | C124: -2288.301462 | D124: -2166.259767
B125: 0.116 | C125: -2287.3615 | D125: -2164.347082
B126: 0.117 | C126: -2286.421924 | D126: -2162.436087
B127: 0.118 | C127: -2285.482735 | D127: -2160.526778
B128: 0.119 | C128: -2284.543931 | D128: -2158.619155
B129: 0.12 | C129: -2283.605513 | D129: -2156.713217
B130: 0.121 | C130: -2282.66748 | D130: -2154.808962
B131: 0.122 | C131: -2281.729832 | D131: -2152.906387
B132: 0.123 | C132: -2280.79257 | D132: -2151.005493
B133: 0.124 | C133: -2279.855693 | D133: -2149.106277
B134: 0.125 | C134: -2278.9192 | D134: -2147.208738
B135: 0.126 | C135: -2277.983092 | D135: -2145.312875
B136: 0.127 | C136: -2277.047369 | D136: -2143.418685
B137: 0.128 | C137: -2276.11203 | D137: -2141.526168
B138: 0.129 | C138: -2275.177075 | D138: -2139.635322
B139: 0.13 | C139: -2274.242505 | D139: -2137.746145
B140: 0.131 | C140: -2273.308318 | D140: -2135.858636
B141: 0.132 | C141: -2272.374515 | D141: -2133.972794
B142: 0.133 | C142: -2271.441095 | D142: -2132.088617
B143: 0.134 | C143: -2270.508059 | D143: -2130.206104
B144: 0.135 | C144: -2269.575406 | D144: -2128.325253
B145: 0.136 | C145: -2268.643137 | D145: -2126.446062
B146: 0.137 | C146: -2267.71125 | D146: -2124.568531
B147: 0.138 | C147: -2266.779746 | D147: -2122.692657
B148: 0.139 | C148: -2265.848625 | D148: -2120.81844
B149: 0.14 | C149: -2264.917886 | D149: -2118.945877
B150: 0.141 | C150: -2263.987529 | D150: -2117.074968
B151: 0.142 | C151: -2263.057555 | D151: -2115.205711
B152: 0.143 | C152: -2262.127963 | D152: -2113.338104
B153: 0.144 | C153: -2261.198752 | D153: -2111.472147
B154: 0.145 | C154: -2260.269923 | D154: -2109.607836
B155: 0.146 | C155: -2259.341476 | D155: -2107.745172
B156: 0.147 | C156: -2258.41341 | D156: -2105.884153
B157: 0.148 | C157: -2257.485725 | D157: -2104.024776
B158: 0.149 | C158: -2256.558422 | D158: -2102.167042
B159: 0.15 | C159: -2255.631499 | D159: -2100.310948
B160: 0.151 | C160: -2254.704957 | D160: -2098.456492
B161: 0.152 | C161: -2253.778796 | D161: -2096.603674
B162: 0.153 | C162: -2252.853015 | D162: -2094.752492
B163: 0.154 | C163: -2251.927614 | D163: -2092.902944
B164: 0.155 | C164: -2251.002594 | D164: -2091.055029
B165: 0.156 | C165: -2250.077953 | D165: -2089.208746
B166: 0.157 | C166: -2249.153692 | D166: -2087.364093
B167: 0.158 | C167: -2248.229811 | D167: -2085.521069
B168: 0.159 | C168: -2247.30631 | D168: -2083.679672
B169: 0.16 | C169: -2246.383187 | D169: -2081.839901
B170: 0.161 | C170: -2245.460444 | D170: -2080.001755
B171: 0.162 | C171: -2244.53808 | D171: -2078.165231
B172: 0.163 | C172: -2243.616095 | D172: -2076.330329
B173: 0.164 | C173: -2242.694489 | D173: -2074.497047
B174: 0.165 | C174: -2241.773261 | D174: -2072.665384
B175: 0.166 | C175: -2240.852411 | D175: -2070.835338
B176: 0.167 | C176: -2239.93194 | D176: -2069.006908
B177: 0.168 | C177: -2239.011847 | D177: -2067.180092
B178: 0.169 | C178: -2238.092132 | D178: -2065.354889
B179: 0.17 | C179: -2237.172795 | D179: -2063.531298
B180: 0.171 | C180: -2236.253835 | D180: -2061.709316
B181: 0.172 | C181: -2235.335253 | D181: -2059.888944
B182: 0.173 | C182: -2234.417048 | D182: -2058.070179
B183: 0.174 | C183: -2233.49922 | D183: -2056.25302
B184: 0.175 | C184: -2232.581769 | D184: -2054.437465
B185: 0.176 | C185: -2231.664695 | D185: -2052.623513
B186: 0.177 | C186: -2230.747998 | D186: -2050.811163
B187: 0.178 | C187: -2229.831678 | D187: -2049.000413
B188: 0.179 | C188: -2228.915733 | D188: -2047.191262
B189: 0.18 | C189: -2228.000165 | D189: -2045.383708
B190: 0.181 | C190: -2227.084973 | D190: -2043.57775
B191: 0.182 | C191: -2226.170157 | D191: -2041.773387
B192: 0.183 | C192: -2225.255717 | D192: -2039.970616
B193: 0.184 | C193: -2224.341653 | D193: -2038.169438
B194: 0.185 | C194: -2223.427964 | D194: -2036.36985
B195: 0.186 | C195: -2222.51465 | D195: -2034.571851
B196: 0.187 | C196: -2221.601711 | D196: -2032.775439
B197: 0.188 | C197: -2220.689148 | D197: -2030.980614
B198: 0.189 | C198: -2219.776959 | D198: -2029.187373
B199: 0.19 | C199: -2218.865145 | D199: -2027.395716
B200: 0.191 | C200: -2217.953705 | D200: -2025.60564
B201: 0.192 | C201: -2217.04264 | D201: -2023.817145
B202: 0.193 | C202: -2216.131949 | D202: -2022.030229
B203: 0.194 | C203: -2215.221632 | D203: -2020.244891
B204: 0.195 | C204: -2214.31169 | D204: -2018.46113
B205: 0.196 | C205: -2213.40212 | D205: -2016.678943
B206: 0.197 | C206: -2212.492925 | D206: -2014.89833
B207: 0.198 | C207: -2211.584103 | D207: -2013.119289
... 4293 more rows

Sheet CalculateD
C2: M | D2: t | E2: ∆P | F2: Target f | H2: D Increment | I2: D start | J2: Iterations | K2: D final | L2: f final | N2: ∆P | O2: GLS | P2: ∆P | Q2: Load | R2: Assumed Load | S2: Assumed Generation
C3: (Sec) | D3: (Sec) | E3: (pu) | F3: (Hz) | H3: (pu) | I3: (pu) | K3: (pu) | L3: (Hz) | P3: pu | R3: Power Factor | S3: Load level | T3: Power factor
C4: =CalculateM!E15 -> 9.922412635 | D4: 0.5 | E4: =N8 -> -0.009839725863 | F4: 59.992 | H4: 0.001 | I4: 0.5 | J4: 3927 | K4: 3.927 | L4: 59.99200007 | M4: MW | N4: 840 | O4: =Q4-N4 -> 66536 | Q4: 67376 | R4: 0.866 | S4: 0.9 | T4: 0.866
M5: MVA | O5: =O4/T4 -> 76831.40878
F6: Calculated f | G6: Number of | H6: Residue | I6: Calculated D
F7: (Hz) | G7: Iterations | H7: (pu) | I7: (pu) | M7: P0 = | N7: =O5/S4 -> 85368.23197
F8: 59.98924133 | G8: 1 | I8: 0.001 | M8: ∆P (pu) = | N8: =(-1)*N4/N7 -> -0.009839725863
F9: 59.98924208 | G9: 2 | I9: 0.002
F10: 59.98924283 | G10: 3 | I10: 0.003
F11: 59.98924358 | G11: 4 | I11: 0.004
F12: 59.98924433 | G12: 5 | I12: 0.005
F13: 59.98924508 | G13: 6 | I13: 0.006
F14: 59.98924583 | G14: 7 | I14: 0.007
F15: 59.98924658 | G15: 8 | I15: 0.008
F16: 59.98924733 | G16: 9 | I16: 0.009
F17: 59.98924808 | G17: 10 | I17: 0.01
F18: 59.98924883 | G18: 11 | I18: 0.011
F19: 59.98924957 | G19: 12 | I19: 0.012
F20: 59.98925032 | G20: 13 | I20: 0.013
F21: 59.98925107 | G21: 14 | I21: 0.014
F22: 59.98925182 | G22: 15 | I22: 0.015
F23: 59.98925257 | G23: 16 | I23: 0.016
F24: 59.98925332 | G24: 17 | I24: 0.017
F25: 59.98925407 | G25: 18 | I25: 0.018
F26: 59.98925482 | G26: 19 | I26: 0.019
F27: 59.98925557 | G27: 20 | I27: 0.02
F28: 59.98925632 | G28: 21 | I28: 0.021
F29: 59.98925707 | G29: 22 | I29: 0.022
F30: 59.98925782 | G30: 23 | I30: 0.023
F31: 59.98925857 | G31: 24 | I31: 0.024
F32: 59.98925932 | G32: 25 | I32: 0.025
F33: 59.98926007 | G33: 26 | I33: 0.026
F34: 59.98926081 | G34: 27 | I34: 0.027
F35: 59.98926156 | G35: 28 | I35: 0.028
F36: 59.98926231 | G36: 29 | I36: 0.029
F37: 59.98926306 | G37: 30 | I37: 0.03
F38: 59.98926381 | G38: 31 | I38: 0.031
F39: 59.98926456 | G39: 32 | I39: 0.032
F40: 59.98926531 | G40: 33 | I40: 0.033
F41: 59.98926606 | G41: 34 | I41: 0.034
F42: 59.98926681 | G42: 35 | I42: 0.035
F43: 59.98926756 | G43: 36 | I43: 0.036
F44: 59.9892683 | G44: 37 | I44: 0.037
F45: 59.98926905 | G45: 38 | I45: 0.038
F46: 59.9892698 | G46: 39 | I46: 0.039
F47: 59.98927055 | G47: 40 | I47: 0.04
F48: 59.9892713 | G48: 41 | I48: 0.041
F49: 59.98927205 | G49: 42 | I49: 0.042
F50: 59.9892728 | G50: 43 | I50: 0.043
F51: 59.98927355 | G51: 44 | I51: 0.044
F52: 59.98927429 | G52: 45 | I52: 0.045
F53: 59.98927504 | G53: 46 | I53: 0.046
F54: 59.98927579 | G54: 47 | I54: 0.047
F55: 59.98927654 | G55: 48 | I55: 0.048
F56: 59.98927729 | G56: 49 | I56: 0.049
F57: 59.98927804 | G57: 50 | I57: 0.05
F58: 59.98927879 | G58: 51 | I58: 0.051
F59: 59.98927953 | G59: 52 | I59: 0.052
F60: 59.98928028 | G60: 53 | I60: 0.053
F61: 59.98928103 | G61: 54 | I61: 0.054
F62: 59.98928178 | G62: 55 | I62: 0.055
F63: 59.98928253 | G63: 56 | I63: 0.056
F64: 59.98928328 | G64: 57 | I64: 0.057
F65: 59.98928403 | G65: 58 | I65: 0.058
F66: 59.98928477 | G66: 59 | I66: 0.059
F67: 59.98928552 | G67: 60 | I67: 0.06
F68: 59.98928627 | G68: 61 | I68: 0.061
F69: 59.98928702 | G69: 62 | I69: 0.062
F70: 59.98928777 | G70: 63 | I70: 0.063
F71: 59.98928852 | G71: 64 | I71: 0.064
F72: 59.98928926 | G72: 65 | I72: 0.065
F73: 59.98929001 | G73: 66 | I73: 0.066
F74: 59.98929076 | G74: 67 | I74: 0.067
F75: 59.98929151 | G75: 68 | I75: 0.068
F76: 59.98929226 | G76: 69 | I76: 0.069
F77: 59.989293 | G77: 70 | I77: 0.07
F78: 59.98929375 | G78: 71 | I78: 0.071
F79: 59.9892945 | G79: 72 | I79: 0.072
F80: 59.98929525 | G80: 73 | I80: 0.073
F81: 59.989296 | G81: 74 | I81: 0.074
F82: 59.98929674 | G82: 75 | I82: 0.075
F83: 59.98929749 | G83: 76 | I83: 0.076
F84: 59.98929824 | G84: 77 | I84: 0.077
F85: 59.98929899 | G85: 78 | I85: 0.078
F86: 59.98929974 | G86: 79 | I86: 0.079
F87: 59.98930048 | G87: 80 | I87: 0.08
F88: 59.98930123 | G88: 81 | I88: 0.081
F89: 59.98930198 | G89: 82 | I89: 0.082
F90: 59.98930273 | G90: 83 | I90: 0.083
F91: 59.98930347 | G91: 84 | I91: 0.084
F92: 59.98930422 | G92: 85 | I92: 0.085
F93: 59.98930497 | G93: 86 | I93: 0.086
F94: 59.98930572 | G94: 87 | I94: 0.087
F95: 59.98930646 | G95: 88 | I95: 0.088
F96: 59.98930721 | G96: 89 | I96: 0.089
F97: 59.98930796 | G97: 90 | I97: 0.09
F98: 59.98930871 | G98: 91 | I98: 0.091
F99: 59.98930945 | G99: 92 | I99: 0.092
F100: 59.9893102 | G100: 93 | I100: 0.093
F101: 59.98931095 | G101: 94 | I101: 0.094
F102: 59.9893117 | G102: 95 | I102: 0.095
F103: 59.98931244 | G103: 96 | I103: 0.096
F104: 59.98931319 | G104: 97 | I104: 0.097
F105: 59.98931394 | G105: 98 | I105: 0.098
F106: 59.98931469 | G106: 99 | I106: 0.099
F107: 59.98931543 | G107: 100 | I107: 0.1
F108: 59.98931618 | G108: 101 | I108: 0.101
F109: 59.98931693 | G109: 102 | I109: 0.102
F110: 59.98931768 | G110: 103 | I110: 0.103
F111: 59.98931842 | G111: 104 | I111: 0.104
F112: 59.98931917 | G112: 105 | I112: 0.105
F113: 59.98931992 | G113: 106 | I113: 0.106
F114: 59.98932066 | G114: 107 | I114: 0.107
F115: 59.98932141 | G115: 108 | I115: 0.108
F116: 59.98932216 | G116: 109 | I116: 0.109
F117: 59.98932291 | G117: 110 | I117: 0.11
F118: 59.98932365 | G118: 111 | I118: 0.111
F119: 59.9893244 | G119: 112 | I119: 0.112
F120: 59.98932515 | G120: 113 | I120: 0.113
F121: 59.98932589 | G121: 114 | I121: 0.114
F122: 59.98932664 | G122: 115 | I122: 0.115
F123: 59.98932739 | G123: 116 | I123: 0.116
F124: 59.98932813 | G124: 117 | I124: 0.117
F125: 59.98932888 | G125: 118 | I125: 0.118
F126: 59.98932963 | G126: 119 | I126: 0.119
F127: 59.98933037 | G127: 120 | I127: 0.12
F128: 59.98933112 | G128: 121 | I128: 0.121
F129: 59.98933187 | G129: 122 | I129: 0.122
F130: 59.98933261 | G130: 123 | I130: 0.123
F131: 59.98933336 | G131: 124 | I131: 0.124
F132: 59.98933411 | G132: 125 | I132: 0.125
F133: 59.98933485 | G133: 126 | I133: 0.126
F134: 59.9893356 | G134: 127 | I134: 0.127
F135: 59.98933635 | G135: 128 | I135: 0.128
F136: 59.98933709 | G136: 129 | I136: 0.129
F137: 59.98933784 | G137: 130 | I137: 0.13
F138: 59.98933859 | G138: 131 | I138: 0.131
F139: 59.98933933 | G139: 132 | I139: 0.132
F140: 59.98934008 | G140: 133 | I140: 0.133
F141: 59.98934083 | G141: 134 | I141: 0.134
F142: 59.98934157 | G142: 135 | I142: 0.135
F143: 59.98934232 | G143: 136 | I143: 0.136
F144: 59.98934307 | G144: 137 | I144: 0.137
F145: 59.98934381 | G145: 138 | I145: 0.138
F146: 59.98934456 | G146: 139 | I146: 0.139
F147: 59.98934531 | G147: 140 | I147: 0.14
F148: 59.98934605 | G148: 141 | I148: 0.141
F149: 59.9893468 | G149: 142 | I149: 0.142
F150: 59.98934754 | G150: 143 | I150: 0.143
F151: 59.98934829 | G151: 144 | I151: 0.144
F152: 59.98934904 | G152: 145 | I152: 0.145
F153: 59.98934978 | G153: 146 | I153: 0.146
F154: 59.98935053 | G154: 147 | I154: 0.147
F155: 59.98935127 | G155: 148 | I155: 0.148
F156: 59.98935202 | G156: 149 | I156: 0.149
F157: 59.98935277 | G157: 150 | I157: 0.15
F158: 59.98935351 | G158: 151 | I158: 0.151
F159: 59.98935426 | G159: 152 | I159: 0.152
F160: 59.989355 | G160: 153 | I160: 0.153
F161: 59.98935575 | G161: 154 | I161: 0.154
F162: 59.9893565 | G162: 155 | I162: 0.155
F163: 59.98935724 | G163: 156 | I163: 0.156
F164: 59.98935799 | G164: 157 | I164: 0.157
F165: 59.98935873 | G165: 158 | I165: 0.158
F166: 59.98935948 | G166: 159 | I166: 0.159
F167: 59.98936023 | G167: 160 | I167: 0.16
F168: 59.98936097 | G168: 161 | I168: 0.161
F169: 59.98936172 | G169: 162 | I169: 0.162
F170: 59.98936246 | G170: 163 | I170: 0.163
F171: 59.98936321 | G171: 164 | I171: 0.164
F172: 59.98936395 | G172: 165 | I172: 0.165
F173: 59.9893647 | G173: 166 | I173: 0.166
F174: 59.98936545 | G174: 167 | I174: 0.167
F175: 59.98936619 | G175: 168 | I175: 0.168
F176: 59.98936694 | G176: 169 | I176: 0.169
F177: 59.98936768 | G177: 170 | I177: 0.17
F178: 59.98936843 | G178: 171 | I178: 0.171
F179: 59.98936917 | G179: 172 | I179: 0.172
F180: 59.98936992 | G180: 173 | I180: 0.173
F181: 59.98937066 | G181: 174 | I181: 0.174
F182: 59.98937141 | G182: 175 | I182: 0.175
F183: 59.98937216 | G183: 176 | I183: 0.176
F184: 59.9893729 | G184: 177 | I184: 0.177
F185: 59.98937365 | G185: 178 | I185: 0.178
F186: 59.98937439 | G186: 179 | I186: 0.179
F187: 59.98937514 | G187: 180 | I187: 0.18
F188: 59.98937588 | G188: 181 | I188: 0.181
F189: 59.98937663 | G189: 182 | I189: 0.182
F190: 59.98937737 | G190: 183 | I190: 0.183
F191: 59.98937812 | G191: 184 | I191: 0.184
F192: 59.98937886 | G192: 185 | I192: 0.185
F193: 59.98937961 | G193: 186 | I193: 0.186
F194: 59.98938035 | G194: 187 | I194: 0.187
F195: 59.9893811 | G195: 188 | I195: 0.188
F196: 59.98938184 | G196: 189 | I196: 0.189
F197: 59.98938259 | G197: 190 | I197: 0.19
F198: 59.98938333 | G198: 191 | I198: 0.191
F199: 59.98938408 | G199: 192 | I199: 0.192
F200: 59.98938482 | G200: 193 | I200: 0.193
F201: 59.98938557 | G201: 194 | I201: 0.194
... 3733 more rows

Sheet CalculateM
C2: Δt = | D2: 2 | E2: s
C3: Δf = | D3: -0.119 | E3: Hz
C5: ∆f0' = | D5: =(D3/60)/(D2) -> -0.0009916666667 | E5: Hz/s
C12: ∆P | D12: ∆f0' | E12: M = ∆P/∆f0'
C13: (pu) | D13: (pu) | E13: (pu)
C14: DeltaP (pu) | D14: SlopeAt t=0 | E14: M
C15: =CalculateD!N8 -> -0.009839725863 | D15: =D5 -> -0.0009916666667 | E15: =C15/D15 -> 9.922412635

Sheet Sand Box
A4: From Swedesh report | D4: Mw | E4: Pu
B5: base wind generation | D5: 1010 | E5: 1
B6: max supply | D6: 80 | E6: =D6/D5 -> 0.07920792079
B7: Max consume | D7: 67 | E7: =D7/D5 -> 0.06633663366
A11: Paper Study Base Case
B13: Load | C13: 29372
A14: Wind penetration | C14: 0.2
A15: wind capacity | C15: =C13*C14 -> 5874.4
A16: Max Supply | C16: =E6*C15 -> 465.2990099
A17: Max consume | C17: =E7*C15 -> 389.6879208
